Portfolio,Expense Area,Cost Centre,Expense Type,Account Code,Amount,Supplier Name,SupplierId,Pay Date,Transaction No.,,VAT No.,Co. Reg. No.,VAT No.,Voucher Type,�,Trans Date
Capital Housing Revenue Account,WSU Depot,WDP00,Materials,303,43.1,Arco Limited,100015,26/07/2018,10260542,TC,166911546,,166911546,PN,526.45,07/06/2018
Capital Housing Revenue Account,Domestic Waste Collection/Recycling,REF00,Personal Protective Clothing,340,59.99,Arco Limited,100015,26/07/2018,10260542,TC,166911546,,166911546,PN,526.45,07/06/2018
Capital Housing Revenue Account,WSU Depot,WDP00,Personal Protective Clothing,340,335.62,Arco Limited,100015,26/07/2018,10260542,TC,166911546,,166911546,PN,526.45,07/06/2018
Capital Housing Revenue Account,Grounds Maintenance,PKS20,Personal Protective Clothing,340,455.28,Arco Limited,100015,19/07/2018,10261264,TC,166911546,,166911546,PN,546.34,02/07/2018
Capital Housing Revenue Account,WSU Depot,WDP00,Materials,303,590.87,Arco Limited,100015,26/07/2018,10261852,TC,166911546,,166911546,PN,709.04,18/07/2018
Capital Housing Revenue Account,Domestic Waste Collection/Recycling,REF00,Personal Protective Clothing,340,163.99,Arco Limited,100015,26/07/2018,10261965,TC,166911546,,166911546,PN,555.29,23/07/2018
Capital Housing Revenue Account,Street Cleansing General,STC00,Personal Protective Clothing,340,84,Arco Limited,100015,26/07/2018,10261965,TC,166911546,,166911546,PN,555.29,23/07/2018
Capital Housing Revenue Account,WSU Depot,WDP00,Personal Protective Clothing,340,214.75,Arco Limited,100015,26/07/2018,10261965,TC,166911546,,166911546,PN,555.29,23/07/2018
Capital Housing Revenue Account,Trade Waste Collection,WWC01,Vehicle Repair and Maintenance,200,7.2,Arrow Engineering Supply Co Ltd,100016,19/07/2018,10261507,TC,418516844,,418516844,PN,553.41,06/07/2018
Capital Housing Revenue Account,Grounds Maintenance,PKS20,Materials,303,55.14,Arrow Engineering Supply Co Ltd,100016,19/07/2018,10261507,TC,418516844,,418516844,PN,553.41,06/07/2018
Capital Housing Revenue Account,Street Cleansing General,STC00,Materials,303,24.74,Arrow Engineering Supply Co Ltd,100016,19/07/2018,10261507,TC,418516844,,418516844,PN,553.41,06/07/2018
Capital Housing Revenue Account,Unplanned Maintenance and Repair,UMR00,Materials,303,22.2,Arrow Engineering Supply Co Ltd,100016,19/07/2018,10261507,TC,418516844,,418516844,PN,553.41,06/07/2018
Capital Housing Revenue Account,Garage,WVR00,Materials,303,61.9,Arrow Engineering Supply Co Ltd,100016,19/07/2018,10261507,TC,418516844,,418516844,PN,553.41,06/07/2018
Capital Housing Revenue Account,Grounds Maintenance,PKS20,Tools,304,290,Arrow Engineering Supply Co Ltd,100016,19/07/2018,10261507,TC,418516844,,418516844,PN,553.41,06/07/2018
Capital Housing Revenue Account,Parks,PKS00,Training fees,11,465,The Arboricultural Association,100027,26/07/2018,10261927,TC,293509829,,293509829,PI,558,19/07/2018
Capital Housing Revenue Account,Grounds Maintenance,PKS20,Materials,303,466.4,Access Irrigation Limited,100042,05/07/2018,10261258,TC,273935529,,273935529,PI,559.68,29/06/2018
Capital Housing Revenue Account,Electrical maintenance,UMR10,R&M External Contractors,100,834.65,AWM Electrical Contractors Ltd,100051,05/07/2018,10261143,CS,661675907,7430696,661675907,PN,1001.58,28/06/2018
Capital Housing Revenue Account,CAST - Private Sector Leasing,CAS03,R&M External Contractors,100,76.44,AWM Electrical Contractors Ltd,100051,05/07/2018,10261232,CS,661675907,7430696,661675907,PN,2104.73,29/06/2018
Capital Housing Revenue Account,Repairs and Maintenance - Void works,UMR09,R&M External Contractors,100,1613,AWM Electrical Contractors Ltd,100051,05/07/2018,10261232,CS,661675907,7430696,661675907,PN,2104.73,29/06/2018
Capital Housing Revenue Account,Multi-Storey Flats,MSF00,Other Miscellaneous Expenses,444,64.5,AWM Electrical Contractors Ltd,100051,05/07/2018,10261232,CS,661675907,7430696,661675907,PN,2104.73,29/06/2018
Capital Housing Revenue Account,Repairs and Maintenance - Void works,UMR09,R&M External Contractors,100,1757.59,AWM Electrical Contractors Ltd,100051,05/07/2018,10261233,CS,661675907,7430696,661675907,PN,2134.9,29/06/2018
Capital Housing Revenue Account,Electrical maintenance,UMR10,R&M External Contractors,100,21.5,AWM Electrical Contractors Ltd,100051,05/07/2018,10261233,CS,661675907,7430696,661675907,PN,2134.9,29/06/2018
Capital Housing Revenue Account,Electrical maintenance,UMR10,R&M External Contractors,100,963.3,AWM Electrical Contractors Ltd,100051,05/07/2018,10261234,CS,661675907,7430696,661675907,PN,1155.96,29/06/2018
Capital Housing Revenue Account,Repairs and Maintenance - Void works,UMR09,R&M External Contractors,100,667.86,AWM Electrical Contractors Ltd,100051,05/07/2018,10261235,CS,661675907,7430696,661675907,PN,982.87,29/06/2018
Capital Housing Revenue Account,Electrical maintenance,UMR10,R&M External Contractors,100,151.2,AWM Electrical Contractors Ltd,100051,05/07/2018,10261235,CS,661675907,7430696,661675907,PN,982.87,29/06/2018
Capital Housing Revenue Account,Electrical maintenance,UMR10,R&M External Contractors,100,2791.9,AWM Electrical Contractors Ltd,100051,05/07/2018,10261386,CS,661675907,7430696,661675907,PN,3350.27,04/07/2018
Capital Housing Revenue Account,Electrical maintenance,UMR10,R&M External Contractors,100,464,AWM Electrical Contractors Ltd,100051,12/07/2018,10261387,CS,661675907,7430696,661675907,PN,872.35,04/07/2018
Capital Housing Revenue Account,Miscellaneous Unplanned Maintenance and Repair,UMR17,R&M External Contractors,100,159.01,AWM Electrical Contractors Ltd,100051,12/07/2018,10261387,CS,661675907,7430696,661675907,PN,872.35,04/07/2018
Capital Housing Revenue Account,Multi-Storey Flats,MSF00,Other Miscellaneous Expenses,444,103.95,AWM Electrical Contractors Ltd,100051,12/07/2018,10261387,CS,661675907,7430696,661675907,PN,872.35,04/07/2018
Capital Housing Revenue Account,Electrical maintenance,UMR10,R&M External Contractors,100,740.91,AWM Electrical Contractors Ltd,100051,19/07/2018,10261662,CS,661675907,7430696,661675907,PN,932.03,12/07/2018
Capital Housing Revenue Account,Miscellaneous Unplanned Maintenance and Repair,UMR17,R&M External Contractors,100,35.78,AWM Electrical Contractors Ltd,100051,19/07/2018,10261662,CS,661675907,7430696,661675907,PN,932.03,12/07/2018
Capital Housing Revenue Account,Electrical maintenance,UMR10,R&M External Contractors,100,1480.96,AWM Electrical Contractors Ltd,100051,19/07/2018,10261663,CS,661675907,7430696,661675907,PN,2170.55,12/07/2018
Capital Housing Revenue Account,Miscellaneous Unplanned Maintenance and Repair,UMR17,R&M External Contractors,100,40.61,AWM Electrical Contractors Ltd,100051,19/07/2018,10261663,CS,661675907,7430696,661675907,PN,2170.55,12/07/2018
Capital Housing Revenue Account,Fire Risk Prevention Works,HCE18,Capital Contract Payments,5000,287.23,AWM Electrical Contractors Ltd,100051,19/07/2018,10261663,CS,661675907,7430696,661675907,PN,2170.55,12/07/2018
Capital Housing Revenue Account,Repairs and Maintenance - Void works,UMR09,R&M External Contractors,100,549.35,AWM Electrical Contractors Ltd,100051,19/07/2018,10261712,CS,661675907,7430696,661675907,PN,705.18,13/07/2018
Capital Housing Revenue Account,Electrical maintenance,UMR10,R&M External Contractors,100,38.3,AWM Electrical Contractors Ltd,100051,19/07/2018,10261712,CS,661675907,7430696,661675907,PN,705.18,13/07/2018
Capital Housing Revenue Account,Electrical maintenance,UMR10,R&M External Contractors,100,1021.58,AWM Electrical Contractors Ltd,100051,19/07/2018,10261884,CS,661675907,7430696,661675907,PN,1585,18/07/2018
Capital Housing Revenue Account,Miscellaneous Unplanned Maintenance and Repair,UMR17,R&M External Contractors,100,299.25,AWM Electrical Contractors Ltd,100051,19/07/2018,10261884,CS,661675907,7430696,661675907,PN,1585,18/07/2018
Capital Housing Revenue Account,Electrical maintenance,UMR10,R&M External Contractors,100,1816.03,AWM Electrical Contractors Ltd,100051,19/07/2018,10261885,CS,661675907,7430696,661675907,PN,3227.3,18/07/2018
Capital Housing Revenue Account,Miscellaneous Unplanned Maintenance and Repair,UMR17,R&M External Contractors,100,873.38,AWM Electrical Contractors Ltd,100051,19/07/2018,10261885,CS,661675907,7430696,661675907,PN,3227.3,18/07/2018
Capital Housing Revenue Account,Repairs and Maintenance - Void works,UMR09,R&M External Contractors,100,2092.34,AWM Electrical Contractors Ltd,100051,19/07/2018,10261886,CS,661675907,7430696,661675907,PN,2510.81,18/07/2018
Capital Housing Revenue Account,Electrical maintenance,UMR10,R&M External Contractors,100,690.58,AWM Electrical Contractors Ltd,100051,26/07/2018,10261974,CS,661675907,7430696,661675907,PN,846.7,23/07/2018
Capital Housing Revenue Account,Miscellaneous Unplanned Maintenance and Repair,UMR17,R&M External Contractors,100,15,AWM Electrical Contractors Ltd,100051,26/07/2018,10261974,CS,661675907,7430696,661675907,PN,846.7,23/07/2018
Capital Housing Revenue Account,Electrical maintenance,UMR10,R&M External Contractors,100,410.09,AWM Electrical Contractors Ltd,100051,26/07/2018,10261975,CS,661675907,7430696,661675907,PN,880.84,23/07/2018
Capital Housing Revenue Account,Miscellaneous Unplanned Maintenance and Repair,UMR17,R&M External Contractors,100,323.94,AWM Electrical Contractors Ltd,100051,26/07/2018,10261975,CS,661675907,7430696,661675907,PN,880.84,23/07/2018
Capital Housing Revenue Account,Repairs and Maintenance - Void works,UMR09,R&M External Contractors,100,1865.16,AWM Electrical Contractors Ltd,100051,26/07/2018,10261976,CS,661675907,7430696,661675907,PN,2238.19,23/07/2018
Capital Housing Revenue Account,Electrical maintenance,UMR10,R&M External Contractors,100,2288.42,AWM Electrical Contractors Ltd,100051,26/07/2018,10262126,CS,661675907,7430696,661675907,PN,3597.16,25/07/2018
Capital Housing Revenue Account,Miscellaneous Unplanned Maintenance and Repair,UMR17,R&M External Contractors,100,709.22,AWM Electrical Contractors Ltd,100051,26/07/2018,10262126,CS,661675907,7430696,661675907,PN,3597.16,25/07/2018
Capital Housing Revenue Account,Electrical maintenance,UMR10,R&M External Contractors,100,674.62,AWM Electrical Contractors Ltd,100051,26/07/2018,10262127,CS,661675907,7430696,661675907,PN,809.54,25/07/2018
Capital Housing Revenue Account,Repairs and Maintenance - Void works,UMR09,R&M External Contractors,100,697.4,AWM Electrical Contractors Ltd,100051,26/07/2018,10262128,CS,661675907,7430696,661675907,PN,836.88,25/07/2018
Capital Housing Revenue Account,Universal Credit Support,CAS04,Other Agencies,734,535.5,Benn Partnership Centre,100235,12/07/2018,10261436,TC,,,,PI,535.5,04/07/2018
Capital Housing Revenue Account,Corporate Property R&M,CPA01,R&M External Contractors,100,1181.95,Chillaire Service & Maintenance Ltd,100305,05/07/2018,10261222,TC,806802244,4622016,806802244,PN,1418.34,29/06/2018
Capital Housing Revenue Account,Corporate Property R&M,CPA01,R&M External Contractors,100,728,Chillaire Service & Maintenance Ltd,100305,19/07/2018,10261521,TC,806802244,4622016,806802244,PN,873.6,09/07/2018
Capital Housing Revenue Account,Corporate Property R&M,CPA01,R&M External Contractors,100,4960,Chillaire Service & Maintenance Ltd,100305,19/07/2018,10261523,TC,806802244,4622016,806802244,PN,5952,09/07/2018
Capital Housing Revenue Account,Grounds Maintenance,PKS20,Contract Hire,220,704,Clements Plant & Tool Hire Ltd,100309,12/07/2018,10261434,TC,272388144,,272388144,PI,844.8,04/07/2018
Capital Housing Revenue Account,Domestic Waste Collection/Recycling,REF00,External Contractor & Operator,742,468.7,Cannon Hygiene Ltd,100436,12/07/2018,10261345,TC,209918933,,209918933,PI,562.44,03/07/2018
Capital Housing Revenue Account,ITC & Support Services,CIS10,Photocopying,354,1307.84,Canon (UK) Limited,100514,12/07/2018,10261260,TC,523797128,1264300,523797128,PN,1569.41,02/07/2018
Capital Housing Revenue Account,ITC & Support Services,CIS10,Photocopying,354,2894.9,Canon (UK) Limited,100514,12/07/2018,10261261,TC,523797128,1264300,523797128,PN,3473.88,02/07/2018
Capital Housing Revenue Account,ITC & Support Services,CIS10,Photocopying,354,3708.98,Canon (UK) Limited,100514,12/07/2018,10261262,TC,523797128,1264300,523797128,PN,4450.78,02/07/2018
Capital Housing Revenue Account,ITC & Support Services,CIS10,Photocopying,354,429.27,Canon (UK) Limited,100514,12/07/2018,10261525,TC,523797128,1264300,523797128,PN,515.12,09/07/2018
Capital Housing Revenue Account,Domestic Waste Collection/Recycling,REF00,Vehicle Repair and Maintenance,200,1748.27,Dennis Eagle Ltd,100559,05/07/2018,10261204,TC,272496827,,272 4968 27,PN,2097.92,28/06/2018
Capital Housing Revenue Account,Trade Waste Collection,WWC01,Vehicle Repair and Maintenance,200,1031.84,Dennis Eagle Ltd,100559,12/07/2018,10261411,TC,272496827,,272 4968 27,PN,1238.21,04/07/2018
Capital Housing Revenue Account,Domestic Waste Collection/Recycling,REF00,Vehicle Repair and Maintenance,200,1374.3,Dennis Eagle Ltd,100559,12/07/2018,10261414,TC,272496827,,272 4968 27,PN,1733.88,04/07/2018
Capital Housing Revenue Account,Trade Waste Collection,WWC01,Vehicle Repair and Maintenance,200,70.6,Dennis Eagle Ltd,100559,12/07/2018,10261414,TC,272496827,,272 4968 27,PN,1733.88,04/07/2018
Capital Housing Revenue Account,Domestic Waste Collection/Recycling,REF00,Vehicle Repair and Maintenance,200,638.96,Dennis Eagle Ltd,100559,19/07/2018,10261588,TC,272496827,,272 4968 27,PN,766.75,09/07/2018
Capital Housing Revenue Account,Domestic Waste Collection/Recycling,REF00,Vehicle Repair and Maintenance,200,579.45,Dennis Eagle Ltd,100559,19/07/2018,10261688,TC,272496827,,272 4968 27,PN,695.34,12/07/2018
Capital Housing Revenue Account,Domestic Waste Collection/Recycling,REF00,Vehicle Repair and Maintenance,200,801.38,Dennis Eagle Ltd,100559,26/07/2018,10261783,TC,272496827,,272 4968 27,PN,1503.41,17/07/2018
Capital Housing Revenue Account,Household Green Waste Collections,REF06,Vehicle Repair and Maintenance,200,293.18,Dennis Eagle Ltd,100559,26/07/2018,10261783,TC,272496827,,272 4968 27,PN,1503.41,17/07/2018
Capital Housing Revenue Account,Trade Waste Collection,WWC01,Vehicle Repair and Maintenance,200,158.28,Dennis Eagle Ltd,100559,26/07/2018,10261783,TC,272496827,,272 4968 27,PN,1503.41,17/07/2018
Capital Housing Revenue Account,Domestic Waste Collection/Recycling,REF00,Vehicle Repair and Maintenance,200,1149.7,Dennis Eagle Ltd,100559,26/07/2018,10261861,TC,272496827,,272 4968 27,PN,1379.64,18/07/2018
Capital Housing Revenue Account,Corporate Property R&M,CPA01,R&M External Contractors,100,607.5,Dunchurch Services (Rugby) Ltd,100565,05/07/2018,10261291,CS,623535748,2693688,623535748,PN,729,02/07/2018
Capital Housing Revenue Account,Corporate Property R&M,CPA01,R&M External Contractors,100,460,Dunchurch Services (Rugby) Ltd,100565,19/07/2018,10261623,CS,623535748,2693688,623535748,PN,552,10/07/2018
Capital Housing Revenue Account,Corporate Property R&M,CPA01,R&M External Contractors,100,523,Dunchurch Services (Rugby) Ltd,100565,19/07/2018,10261625,CS,623535748,2693688,623535748,PN,627.6,10/07/2018
Capital Housing Revenue Account,Corporate Property Central Utilities,CPA02,Gas,131,776.22,ESPO,100641,26/07/2018,10261795,TC,705180561,,705180561,PN,931.46,17/07/2018
Capital Housing Revenue Account,Corporate Property Central Utilities,CPA02,Gas,131,517.49,ESPO,100641,26/07/2018,10261796,TC,705180561,,705180561,PN,543.36,17/07/2018
Capital Housing Revenue Account,Albert Square AP,AGP20,Gas,131,705.55,ESPO,100641,26/07/2018,10261798,TC,705180561,,705180561,PN,846.66,17/07/2018
Capital Housing Revenue Account,Lesley Souter House AP,AGP16,Gas,131,510.15,ESPO,100641,26/07/2018,10261799,TC,705180561,,705180561,PN,612.18,17/07/2018
Capital Housing Revenue Account,Tanser Court AP,AGP17,Gas,131,485.62,ESPO,100641,26/07/2018,10261800,TC,705180561,,705180561,PN,582.74,17/07/2018
Capital Housing Revenue Account,Crematorium,CRM00,Gas,131,1133.75,ESPO,100641,19/07/2018,10261820,TC,705180561,,705180561,PN,1360.5,17/07/2018
Capital Housing Revenue Account,Grounds Maintenance,PKS20,Vehicle Repair and Maintenance,200,1017.96,Ford & Slater,100817,19/07/2018,10261790,TC,565760807,,565 7608 07,PN,1221.55,17/07/2018
Capital Housing Revenue Account,Planning General/Income,PLN00,Consultancy Costs,740,1450,Gerald Eve,100929,26/07/2018,10261958,TC,974992941,,974992941,PN,1740,23/07/2018
Capital Housing Revenue Account,Human Resources Centralised Services,RES31,Recruitment Expenses,12,495.85,TMP (UK) LTD,100972,05/07/2018,10260188,TC,872904502,,872904502,PI,595.02,25/05/2018
Capital Housing Revenue Account,Human Resources Centralised Services,RES31,Recruitment Expenses,12,556.63,TMP (UK) LTD,100972,05/07/2018,10260189,TC,872904502,,872904502,PI,667.96,25/05/2018
Capital Housing Revenue Account,Human Resources Centralised Services,RES31,Recruitment Expenses,12,1570,TMP (UK) LTD,100972,12/07/2018,10261543,TC,872904502,,872904502,PI,1884,09/07/2018
Capital Housing Revenue Account,AGM Exhibitions/Outreach,AGM02,Other Miscellaneous Expenses,444,560,Personal Redacted Data,100974,19/07/2018,10261696,TC,,,,PN,560,12/07/2018
Capital Housing Revenue Account,Parks,PKS00,Maintenance of Equipment,301,687.09,Kompan Ltd,101199,12/07/2018,10260614,CS,382219257,1704623,382219257,PI,824.5,08/06/2018
Capital Housing Revenue Account,Street Cleansing General,STC00,External Contractor & Operator,742,-741.44,Clews Recycling Limited,101213,05/07/2018,10260733,TC,747316619,,747316619,PN,-889.73,18/06/2018
Capital Housing Revenue Account,Unplanned Maintenance and Repair,UMR00,External Contractor & Operator,742,541.06,Clews Recycling Limited,101213,19/07/2018,10261145,TC,747316619,,747316619,PN,649.27,28/06/2018
Capital Housing Revenue Account,Unplanned Maintenance and Repair,UMR00,External Contractor & Operator,742,530.63,Clews Recycling Limited,101213,19/07/2018,10261664,TC,747316619,,747316619,PN,636.76,12/07/2018
Capital Housing Revenue Account,Unplanned Maintenance and Repair,UMR00,External Contractor & Operator,742,738.84,Clews Recycling Limited,101213,26/07/2018,10261827,TC,747316619,,747316619,PN,886.61,17/07/2018
Capital Housing Revenue Account,Balance Sheet,BS,Revenue Section Agreements,9865,17053.68,Long Lawford Parish Council,101228,26/07/2018,10261922,NT,,,,PN,17053.68,19/07/2018
Capital Housing Revenue Account,Grass Cutting- Parishes,PKS13,External Contractor & Operator,742,2548,Monks Kirby Parish Council,101300,26/07/2018,10261997,TC,,,,PN,2548,24/07/2018
Capital Housing Revenue Account,Parks,PKS00,External Contractor & Operator,742,680,Middlemarch Environmental Ltd,101337,19/07/2018,10261728,TC,670318740,,670 3187 40,PI,816,13/07/2018
Capital Housing Revenue Account,Grounds Maintenance,PKS20,Materials,303,449,Nomix Enviro Ltd,101369,05/07/2018,10261324,TC,278342184,10887479,278342184,PI,538.8,03/07/2018
Capital Housing Revenue Account,Parks,PKS00,External Contractor & Operator,742,2731.58,Nuneaton Signs Ltd,101371,19/07/2018,10261155,TC,355381251,7207123,355 381251,PI,3277.9,28/06/2018
Capital Housing Revenue Account,Visitor Centre,VSC00,Events Tickets - Standard Rated,1404,1175.96,National Express Ltd,101392,05/07/2018,10261273,TC,487038714,,487038714,PN,1175.96,02/07/2018
Capital Housing Revenue Account,Sheltered Housing,AGP00,Telephone Expenses,371,239.34,EE Ltd t/a Orange Personal Communications,101404,19/07/2018,10261777,TC,529221751,,529221751,PN,5074.48,17/07/2018
Capital Housing Revenue Account,Crematorium,CRM00,Telephone Expenses,371,11.75,EE Ltd t/a Orange Personal Communications,101404,19/07/2018,10261777,TC,529221751,,529221751,PN,5074.48,17/07/2018
Capital Housing Revenue Account,Supervision and Management General,MAN00,Telephone Expenses,371,143.16,EE Ltd t/a Orange Personal Communications,101404,19/07/2018,10261777,TC,529221751,,529221751,PN,5074.48,17/07/2018
Capital Housing Revenue Account,Property Maintenance,MAN23,Telephone Expenses,371,123.91,EE Ltd t/a Orange Personal Communications,101404,19/07/2018,10261777,TC,529221751,,529221751,PN,5074.48,17/07/2018
Capital Housing Revenue Account,Voids & Allocations Team,MAN24,Telephone Expenses,371,58,EE Ltd t/a Orange Personal Communications,101404,19/07/2018,10261777,TC,529221751,,529221751,PN,5074.48,17/07/2018
Capital Housing Revenue Account,Multi-Storey Flats,MSF00,Telephone Expenses,371,11.75,EE Ltd t/a Orange Personal Communications,101404,19/07/2018,10261777,TC,529221751,,529221751,PN,5074.48,17/07/2018
Capital Housing Revenue Account,Mobile telephones,TEL03,Telephone Expenses,371,2663.17,EE Ltd t/a Orange Personal Communications,101404,19/07/2018,10261777,TC,529221751,,529221751,PN,5074.48,17/07/2018
Capital Housing Revenue Account,Unplanned Maintenance and Repair,UMR00,Telephone Expenses,371,966.4,EE Ltd t/a Orange Personal Communications,101404,19/07/2018,10261777,TC,529221751,,529221751,PN,5074.48,17/07/2018
Capital Housing Revenue Account,Repairs and Maintenance - Void works,UMR09,Telephone Expenses,371,11.75,EE Ltd t/a Orange Personal Communications,101404,19/07/2018,10261777,TC,529221751,,529221751,PN,5074.48,17/07/2018
Capital Housing Revenue Account,Parks,PKS00,R&M External Contractors,100,512.52,PJT Pumping Services,101438,05/07/2018,10261100,TC,618143943,,618143943,PN,615.02,28/06/2018
Capital Housing Revenue Account,Sewage Disposal Plant,SDP00,R&M External Contractors,100,571.78,PJT Pumping Services,101438,05/07/2018,10261116,TC,618143943,,618143943,PN,686.14,28/06/2018
Capital Housing Revenue Account,Parks,PKS00,Maintenance of Equipment,301,1040,Post To Post Fencing,101490,05/07/2018,10260867,CS,7729350133,,7729350133,PI,2178,19/06/2018
Capital Housing Revenue Account,Parks,PKS00,External Contractor & Operator,742,775,Post To Post Fencing,101490,05/07/2018,10260867,CS,7729350133,,7729350133,PI,2178,19/06/2018
Capital Housing Revenue Account,Disabled Adaptations,HCR01,Capital Contract Payments,5000,2060,Reeds Plumbing & Heating Contractors Ltd,101504,19/07/2018,10261901,CS,418584732,4468782,418 5847 32,PN,16458.94,18/07/2018
Capital Housing Revenue Account,Kitchen Modifications,HIK10,Capital Contract Payments,5000,2297,Reeds Plumbing & Heating Contractors Ltd,101504,19/07/2018,10261901,CS,418584732,4468782,418 5847 32,PN,16458.94,18/07/2018
Capital Housing Revenue Account,Bathroom Modifications,HIS01,Capital Contract Payments,5000,9358.78,Reeds Plumbing & Heating Contractors Ltd,101504,19/07/2018,10261901,CS,418584732,4468782,418 5847 32,PN,16458.94,18/07/2018
Capital Housing Revenue Account,Art Gallery and Museum,AGM00,Postage & Distribution,370,0.4,Royal Mail,101554,05/07/2018,10261038,TC,,,,PN,1335.84,25/06/2018
Capital Housing Revenue Account,Building Control Services,BCS00,Postage & Distribution,370,0.9,Royal Mail,101554,05/07/2018,10261038,TC,,,,PN,1335.84,25/06/2018
Capital Housing Revenue Account,Community Advice & Support Team,CAS00,Postage & Distribution,370,205.54,Royal Mail,101554,05/07/2018,10261038,TC,,,,PN,1335.84,25/06/2018
Capital Housing Revenue Account,Central Business Support Services,CSS15,Postage & Distribution,370,218.26,Royal Mail,101554,05/07/2018,10261038,TC,,,,PN,1335.84,25/06/2018
Capital Housing Revenue Account,Council Tax and NNDR Collection,CTX01,Postage & Distribution,370,446.62,Royal Mail,101554,05/07/2018,10261038,TC,,,,PN,1335.84,25/06/2018
Capital Housing Revenue Account,Electoral Registration,ERG00,Postage & Distribution,370,8.81,Royal Mail,101554,05/07/2018,10261038,TC,,,,PN,1335.84,25/06/2018
Capital Housing Revenue Account,Supervision and Management General,MAN00,Postage & Distribution,370,64.57,Royal Mail,101554,05/07/2018,10261038,TC,,,,PN,1335.84,25/06/2018
Capital Housing Revenue Account,Planning General/Income,PLN00,Postage & Distribution,370,110.97,Royal Mail,101554,05/07/2018,10261038,TC,,,,PN,1335.84,25/06/2018
Capital Housing Revenue Account,Domestic Waste Collection/Recycling,REF00,Postage & Distribution,370,1.2,Royal Mail,101554,05/07/2018,10261038,TC,,,,PN,1335.84,25/06/2018
Capital Housing Revenue Account,Household Green Waste Collections,REF06,Postage & Distribution,370,54.74,Royal Mail,101554,05/07/2018,10261038,TC,,,,PN,1335.84,25/06/2018
Capital Housing Revenue Account,Unplanned Maintenance and Repair,UMR00,Postage & Distribution,370,1.9,Royal Mail,101554,05/07/2018,10261038,TC,,,,PN,1335.84,25/06/2018
Capital Housing Revenue Account,Art Gallery and Museum,AGM00,Postage & Distribution,370,1.7,Royal Mail,101554,12/07/2018,10261274,TC,,,,PN,1450.04,02/07/2018
Capital Housing Revenue Account,Building Control Services,BCS00,Postage & Distribution,370,22.78,Royal Mail,101554,12/07/2018,10261274,TC,,,,PN,1450.04,02/07/2018
Capital Housing Revenue Account,Community Advice & Support Team,CAS00,Postage & Distribution,370,198.6,Royal Mail,101554,12/07/2018,10261274,TC,,,,PN,1450.04,02/07/2018
Capital Housing Revenue Account,Central Business Support Services,CSS15,Postage & Distribution,370,236.23,Royal Mail,101554,12/07/2018,10261274,TC,,,,PN,1450.04,02/07/2018
Capital Housing Revenue Account,Council Tax and NNDR Collection,CTX01,Postage & Distribution,370,368.06,Royal Mail,101554,12/07/2018,10261274,TC,,,,PN,1450.04,02/07/2018
Capital Housing Revenue Account,Electoral Registration,ERG00,Postage & Distribution,370,32,Royal Mail,101554,12/07/2018,10261274,TC,,,,PN,1450.04,02/07/2018
Capital Housing Revenue Account,Supervision and Management General,MAN00,Postage & Distribution,370,147.42,Royal Mail,101554,12/07/2018,10261274,TC,,,,PN,1450.04,02/07/2018
Capital Housing Revenue Account,Planning General/Income,PLN00,Postage & Distribution,370,144.25,Royal Mail,101554,12/07/2018,10261274,TC,,,,PN,1450.04,02/07/2018
Capital Housing Revenue Account,Domestic Waste Collection/Recycling,REF00,Postage & Distribution,370,3.48,Royal Mail,101554,12/07/2018,10261274,TC,,,,PN,1450.04,02/07/2018
Capital Housing Revenue Account,Household Green Waste Collections,REF06,Postage & Distribution,370,43.63,Royal Mail,101554,12/07/2018,10261274,TC,,,,PN,1450.04,02/07/2018
Capital Housing Revenue Account,Unplanned Maintenance and Repair,UMR00,Postage & Distribution,370,1.6,Royal Mail,101554,12/07/2018,10261274,TC,,,,PN,1450.04,02/07/2018
Capital Housing Revenue Account,Visitor Centre,VSC00,Postage & Distribution,370,8.62,Royal Mail,101554,12/07/2018,10261274,TC,,,,PN,1450.04,02/07/2018
Capital Housing Revenue Account,Central Business Support Services,CSS15,Postage & Distribution,370,3813,Royal Mail,101554,05/07/2018,10261300,TC,,,,PN,4575.6,02/07/2018
Capital Housing Revenue Account,Art Gallery and Museum,AGM00,Postage & Distribution,370,5.22,Royal Mail,101554,19/07/2018,10261497,TC,,,,PN,1326.35,06/07/2018
Capital Housing Revenue Account,Building Control Services,BCS00,Postage & Distribution,370,3.39,Royal Mail,101554,19/07/2018,10261497,TC,,,,PN,1326.35,06/07/2018
Capital Housing Revenue Account,Community Advice & Support Team,CAS00,Postage & Distribution,370,157.08,Royal Mail,101554,19/07/2018,10261497,TC,,,,PN,1326.35,06/07/2018
Capital Housing Revenue Account,Central Business Support Services,CSS15,Postage & Distribution,370,139.71,Royal Mail,101554,19/07/2018,10261497,TC,,,,PN,1326.35,06/07/2018
Capital Housing Revenue Account,Council Tax and NNDR Collection,CTX01,Postage & Distribution,370,426.21,Royal Mail,101554,19/07/2018,10261497,TC,,,,PN,1326.35,06/07/2018
Capital Housing Revenue Account,Electoral Registration,ERG00,Postage & Distribution,370,103.12,Royal Mail,101554,19/07/2018,10261497,TC,,,,PN,1326.35,06/07/2018
Capital Housing Revenue Account,Supervision and Management General,MAN00,Postage & Distribution,370,98.04,Royal Mail,101554,19/07/2018,10261497,TC,,,,PN,1326.35,06/07/2018
Capital Housing Revenue Account,Planning General/Income,PLN00,Postage & Distribution,370,91.96,Royal Mail,101554,19/07/2018,10261497,TC,,,,PN,1326.35,06/07/2018
Capital Housing Revenue Account,Domestic Waste Collection/Recycling,REF00,Postage & Distribution,370,4.3,Royal Mail,101554,19/07/2018,10261497,TC,,,,PN,1326.35,06/07/2018
Capital Housing Revenue Account,Household Green Waste Collections,REF06,Postage & Distribution,370,77.06,Royal Mail,101554,19/07/2018,10261497,TC,,,,PN,1326.35,06/07/2018
Capital Housing Revenue Account,Electoral Services,ELC00,Postage & Distribution,370,670.22,Royal Mail,101554,12/07/2018,10261591,TC,,,,PN,804.26,09/07/2018
Capital Housing Revenue Account,Art Gallery and Museum,AGM00,Postage & Distribution,370,16.7,Royal Mail,101554,26/07/2018,10261782,TC,,,,PN,1381.57,17/07/2018
Capital Housing Revenue Account,Building Control Services,BCS00,Postage & Distribution,370,0.89,Royal Mail,101554,26/07/2018,10261782,TC,,,,PN,1381.57,17/07/2018
Capital Housing Revenue Account,Community Advice & Support Team,CAS00,Postage & Distribution,370,212.64,Royal Mail,101554,26/07/2018,10261782,TC,,,,PN,1381.57,17/07/2018
Capital Housing Revenue Account,Central Business Support Services,CSS15,Postage & Distribution,370,209.31,Royal Mail,101554,26/07/2018,10261782,TC,,,,PN,1381.57,17/07/2018
Capital Housing Revenue Account,Council Tax and NNDR Collection,CTX01,Postage & Distribution,370,399.52,Royal Mail,101554,26/07/2018,10261782,TC,,,,PN,1381.57,17/07/2018
Capital Housing Revenue Account,Electoral Registration,ERG00,Postage & Distribution,370,35.66,Royal Mail,101554,26/07/2018,10261782,TC,,,,PN,1381.57,17/07/2018
Capital Housing Revenue Account,Supervision and Management General,MAN00,Postage & Distribution,370,48.03,Royal Mail,101554,26/07/2018,10261782,TC,,,,PN,1381.57,17/07/2018
Capital Housing Revenue Account,Planning General/Income,PLN00,Postage & Distribution,370,185.65,Royal Mail,101554,26/07/2018,10261782,TC,,,,PN,1381.57,17/07/2018
Capital Housing Revenue Account,Domestic Waste Collection/Recycling,REF00,Postage & Distribution,370,4.34,Royal Mail,101554,26/07/2018,10261782,TC,,,,PN,1381.57,17/07/2018
Capital Housing Revenue Account,Household Green Waste Collections,REF06,Postage & Distribution,370,38.62,Royal Mail,101554,26/07/2018,10261782,TC,,,,PN,1381.57,17/07/2018
Capital Housing Revenue Account,Visitor Centre,VSC00,Postage & Distribution,370,0.58,Royal Mail,101554,26/07/2018,10261782,TC,,,,PN,1381.57,17/07/2018
Capital Housing Revenue Account,Corporate Property Central Utilities,CPA02,Water Services,143,1414.37,Water Plus,101610,26/07/2018,10261469,TC,,,,PN,1414.37,05/07/2018
Capital Housing Revenue Account,Corporate Property Central Utilities,CPA02,Water Services,143,1095.32,Water Plus,101610,26/07/2018,10261699,TC,,,,PN,1095.32,12/07/2018
Capital Housing Revenue Account,Corporate Property Central Utilities,CPA02,Water Services,143,546.09,Water Plus,101610,26/07/2018,10262099,TC,,,,PN,546.09,25/07/2018
Capital Housing Revenue Account,Corporate Property Central Utilities,CPA02,Water Services,143,1650.61,Water Plus,101610,26/07/2018,10262108,TC,,,,PN,1650.61,25/07/2018
Capital Housing Revenue Account,Miscellaneous Unplanned Maintenance and Repair,UMR17,R&M External Contractors,100,6312.7,Stannah Stairlifts Ltd,101623,19/07/2018,10261415,TC,236778328,,236778328,PN,7575.2,04/07/2018
Capital Housing Revenue Account,Legal Services,DEM20,Ref. Books Journals & Magazines,353,5822.29,Thomson Reuters,101632,05/07/2018,10261142,TC,198923209,1679046,198923209,PN,6986.75,28/06/2018
Capital Housing Revenue Account,Domestic Waste Collection/Recycling,REF00,Tyres,205,590.04,HI-Q Motorway,101736,12/07/2018,10261481,TC,100159429,,100159429,PN,1320.1,05/07/2018
Capital Housing Revenue Account,Trade Waste Collection,WWC01,Tyres,205,510.04,HI-Q Motorway,101736,12/07/2018,10261481,TC,100159429,,100159429,PN,1320.1,05/07/2018
Capital Housing Revenue Account,Domestic Waste Collection/Recycling,REF00,Tyres,205,448.66,HI-Q Motorway,101736,26/07/2018,10261876,TC,100159429,,100159429,PN,1303.3,18/07/2018
Capital Housing Revenue Account,Household Green Waste Collections,REF06,Tyres,205,251.52,HI-Q Motorway,101736,26/07/2018,10261876,TC,100159429,,100159429,PN,1303.3,18/07/2018
Capital Housing Revenue Account,Street Cleansing General,STC00,Tyres,205,313.9,HI-Q Motorway,101736,26/07/2018,10261876,TC,100159429,,100159429,PN,1303.3,18/07/2018
Capital Housing Revenue Account,Trade Waste Collection,WWC01,Tyres,205,72,HI-Q Motorway,101736,26/07/2018,10261876,TC,100159429,,100159429,PN,1303.3,18/07/2018
Capital Housing Revenue Account,Domestic Waste Collection/Recycling,REF00,Materials,303,493.5,Tudor Environmental,101743,19/07/2018,10260819,TC,181621322,8693251,181621322,PI,592.2,19/06/2018
Capital Housing Revenue Account,Domestic Waste Collection/Recycling,REF00,Vehicle Repair and Maintenance,200,571.82,Terberg Matec UK,101761,19/07/2018,10261695,TC,560878510,,560 8785 10,PN,728.56,12/07/2018
Capital Housing Revenue Account,Trade Waste Collection,WWC01,Vehicle Repair and Maintenance,200,35.31,Terberg Matec UK,101761,19/07/2018,10261695,TC,560878510,,560 8785 10,PN,728.56,12/07/2018
Capital Housing Revenue Account,Grass Cutting- Parishes,PKS13,External Contractor & Operator,742,578,Withybrook Parish Council,101849,12/07/2018,10261486,TC,,,,PN,578,06/07/2018
Capital Housing Revenue Account,Head of Growth & Investment,SMT01,Recruitment Expenses,12,1400,West Midlands Employers,101880,26/07/2018,10261932,TC,GB729635111,,GB729635111,PN,1680,20/07/2018
Capital Housing Revenue Account,Human Resources,RES30,Subscriptions,421,1500,West Midlands Employers,101880,26/07/2018,10262088,TC,GB729635111,,GB729635111,PN,1800,25/07/2018
Capital Housing Revenue Account,Sports and Recreation,LSD03,Payments to Other Local Authorities,710,2052,Warwickshire County Council,101893,26/07/2018,10261425,TC,272426659,,272426659,PN,2052,04/07/2018
Capital Housing Revenue Account,Economic Development General,ECD00,Borough Local Plan,452,1337.5,Warwickshire County Council,101893,12/07/2018,10261545,TC,272426659,,272426659,PI,1605,09/07/2018
Capital Housing Revenue Account,Sports and Recreation,LSD03,Payments to Other Local Authorities,710,2093,Warwickshire County Council,101893,26/07/2018,10261642,TC,272426659,,272426659,PN,2093,10/07/2018
Capital Housing Revenue Account,Warwickshire On Line Partnership,JCC10,Payments to Other Local Authorities,710,11403,Warwickshire County Council,101893,19/07/2018,10261840,TC,272426659,,272426659,PN,11403,17/07/2018
Capital Housing Revenue Account,Land Charges,LCH00,Consultancy Costs,740,10059.75,Warwickshire County Council,101893,26/07/2018,10261912,TC,272426659,,272426659,PN,12071.7,19/07/2018
Capital Housing Revenue Account,Heating Upgrades,HIM01,Capital Contract Payments,5000,2128.92,Adroit Services Ltd,101939,19/07/2018,10261681,CS,812650159,4729393,812650159,PN,2554.7,12/07/2018
Capital Housing Revenue Account,Disabled Facilities Grant,REN01,Capital Grants,5014,585805,Nuneaton & Bedworth Borough Council,108060,05/07/2018,10261343,TC,115336790,,115336790,PN,585805,03/07/2018
Capital Housing Revenue Account,General Financial Services,GFS00,Debt Management Expenses,751,14010.95,Sterling International Brokers Ltd,108141,12/07/2018,10261408,TC,500248105,2773693,500248105,PN,14010.95,04/07/2018
Capital Housing Revenue Account,Street Cleansing General,STC00,Vehicle Repair and Maintenance,200,731.29,Scarab Sweepers Ltd,108252,26/07/2018,10261836,TC,374500268,1823459,374500268,PN,877.55,17/07/2018
Capital Housing Revenue Account,CL Grants,CGS00,Grants To Voluntary Organisations,720,3375,Monks Kirby Village hall,108269,26/07/2018,10261994,TC,,,,PN,3375,24/07/2018
Capital Housing Revenue Account,Crematorium,CRM00,Medical Referees Fees,413,1128.5,Dunchurch Surgery,108687,12/07/2018,10261634,TC,,,,PN,1128.5,10/07/2018
Capital Housing Revenue Account,Human Resources Centralised Services,RES31,Training fees,11,460,Shelter Training,109497,26/07/2018,10261935,TC,,,,PN,552,20/07/2018
Capital Housing Revenue Account,Grants and Subscriptions,LGS00,Grants To Voluntary Organisations,720,1000,Michaela McMillan,109689,26/07/2018,10261955,TC,,,,PN,1000,23/07/2018
Capital Housing Revenue Account,Caldecott Park Cafe,BHL01,Building cleaning,170,111.5,1st Class Hygiene Ltd,110029,19/07/2018,10261706,TC,715230275,,715230275,PN,691.5,13/07/2018
Capital Housing Revenue Account,Town Centre Public Conveniences,PCS00,Building cleaning,170,464.75,1st Class Hygiene Ltd,110029,19/07/2018,10261706,TC,715230275,,715230275,PN,691.5,13/07/2018
Capital Housing Revenue Account,Corporate Property R&M,CPA01,R&M External Contractors,100,983.98,Croxford Electrical Ltd,110451,05/07/2018,10261118,CS,307440876,7751876,307 4408 76,PN,1180.78,28/06/2018
Capital Housing Revenue Account,Corporate Property R&M,CPA01,R&M External Contractors,100,473.86,Croxford Electrical Ltd,110451,05/07/2018,10261120,CS,307440876,7751876,307 4408 76,PN,568.63,28/06/2018
Capital Housing Revenue Account,Corporate Property R&M,CPA01,R&M External Contractors,100,3752.76,Croxford Electrical Ltd,110451,05/07/2018,10261123,CS,307440876,7751876,307 4408 76,PN,4503.31,28/06/2018
Capital Housing Revenue Account,Corporate Property R&M,CPA01,R&M External Contractors,100,1095.12,Croxford Electrical Ltd,110451,05/07/2018,10261124,CS,307440876,7751876,307 4408 76,PN,1314.14,28/06/2018
Capital Housing Revenue Account,Corporate Property R&M,CPA01,R&M External Contractors,100,824.75,Croxford Electrical Ltd,110451,26/07/2018,10262100,CS,307440876,7751876,307 4408 76,PN,989.7,25/07/2018
Capital Housing Revenue Account,Crematorium,CRM00,Purchases for Resale,305,447.25,P D Timms,111508,26/07/2018,10262018,TC,420836274,,420836274,PN,536.7,24/07/2018
Capital Housing Revenue Account,Crematorium,CRM00,Purchases for Resale,305,456.33,P D Timms,111508,26/07/2018,10262031,TC,420836274,,420836274,PN,547.6,24/07/2018
Capital Housing Revenue Account,Crematorium,CRM00,Purchases for Resale,305,423.83,P D Timms,111508,26/07/2018,10262035,TC,420836274,,420836274,PN,508.6,24/07/2018
Capital Housing Revenue Account,Crematorium,CRM00,Purchases for Resale,305,440.83,P D Timms,111508,26/07/2018,10262036,TC,420836274,,420836274,PN,529,24/07/2018
Capital Housing Revenue Account,Crematorium,CRM00,Purchases for Resale,305,498.08,P D Timms,111508,26/07/2018,10262037,TC,420836274,,420836274,PN,597.7,24/07/2018
Capital Housing Revenue Account,Crematorium,CRM00,Purchases for Resale,305,431.58,P D Timms,111508,26/07/2018,10262038,TC,420836274,,420836274,PN,517.9,24/07/2018
Capital Housing Revenue Account,Crematorium,CRM00,Purchases for Resale,305,417.33,P D Timms,111508,26/07/2018,10262040,TC,420836274,,420836274,PN,500.8,24/07/2018
Capital Housing Revenue Account,Crematorium,CRM00,Purchases for Resale,305,444.93,P D Timms,111508,26/07/2018,10262041,TC,420836274,,420836274,PN,533.92,24/07/2018
Capital Housing Revenue Account,Crematorium,CRM00,Purchases for Resale,305,444.93,P D Timms,111508,26/07/2018,10262042,TC,420836274,,420836274,PN,533.92,24/07/2018
Capital Housing Revenue Account,Crematorium,CRM00,Purchases for Resale,305,428.08,P D Timms,111508,26/07/2018,10262043,TC,420836274,,420836274,PN,513.7,24/07/2018
Capital Housing Revenue Account,Crematorium,CRM00,Purchases for Resale,305,498.58,P D Timms,111508,26/07/2018,10262044,TC,420836274,,420836274,PN,598.3,24/07/2018
Capital Housing Revenue Account,Crematorium,CRM00,Purchases for Resale,305,432.83,P D Timms,111508,26/07/2018,10262045,TC,420836274,,420836274,PN,519.4,24/07/2018
Capital Housing Revenue Account,Crematorium,CRM00,Purchases for Resale,305,529.33,P D Timms,111508,26/07/2018,10262046,TC,420836274,,420836274,PN,635.2,24/07/2018
Capital Housing Revenue Account,Crematorium,CRM00,Purchases for Resale,305,460.33,P D Timms,111508,26/07/2018,10262047,TC,420836274,,420836274,PN,552.4,24/07/2018
Capital Housing Revenue Account,Crematorium,CRM00,Purchases for Resale,305,425.83,P D Timms,111508,26/07/2018,10262048,TC,420836274,,420836274,PN,511,24/07/2018
Capital Housing Revenue Account,Garage,WVR00,Materials,303,520,Vision Techniques (UK) LTD,111526,05/07/2018,10261177,TC,712562946,,712562946,PN,624,28/06/2018
Capital Housing Revenue Account,Human Resources,RES30,Conference & Seminar Fees,401,850,Reed Business Information,113047,26/07/2018,10261598,TC,235723565,151537,235723565,PN,1020,10/07/2018
Capital Housing Revenue Account,Human Resources,RES30,Conference & Seminar Fees,401,725,Reed Business Information,113047,19/07/2018,10261829,TC,235723565,151537,235723565,PN,870,17/07/2018
Capital Housing Revenue Account,Legal Services,DEM20,Ref. Books Journals & Magazines,353,788.99,Lexis Nexis Butterworths,114132,12/07/2018,10261475,TC,GB730859520,2746621,GB730859520,PN,870.26,05/07/2018
Capital Housing Revenue Account,Grounds Maintenance,PKS20,Contract Hire,220,810,T H White Ltd,116311,26/07/2018,10261841,TC,137567053,519868,137567053,PI,972,17/07/2018
Capital Housing Revenue Account,Street Furniture,HIG01,External Contractor & Operator,742,632,Lushglen,117749,05/07/2018,10261151,TC,642047363,,642047363,PI,758.4,28/06/2018
Capital Housing Revenue Account,Crematorium,CRM00,External Contractor & Operator,742,600,MPCS Services,119391,12/07/2018,10261627,TC,,,,PN,720,10/07/2018
Capital Housing Revenue Account,Human Resources Centralised Services,RES31,Training fees,11,1309.15,Nelson Training,120218,05/07/2018,10261402,TC,781446904,,781446904,PN,1570.98,04/07/2018
Capital Housing Revenue Account,Maintenance of Open Spaces,MOS00,External Contractor & Operator,742,548.99,Brinklow Quarry Ltd,122921,12/07/2018,10261413,TC,273163073,6765411,273163073,PN,658.79,04/07/2018
Capital Housing Revenue Account,Section 106 Grounds Maintenance,PKS16,External Contractor & Operator,742,1572.44,Proludic,123148,12/07/2018,10260913,CS,796632872,,796632872,PI,1886.94,20/06/2018
Capital Housing Revenue Account,ITC & Support Services,CIS10,Hardware Maintenance,376,3403.12,Cable & Wireless/T/A Vodafone,123224,19/07/2018,10261363,TC,569953277,,569953277,PN,4083.74,03/07/2018
Capital Housing Revenue Account,Parks,PKS00,Materials,303,1087.5,Rigby Taylor Ltd,123342,12/07/2018,10261534,TC,354646243,,354646243,PI,1305,09/07/2018
Capital Housing Revenue Account,Disabled Adaptations,HCR01,Capital Contract Payments,5000,2650,Dolphin Lifts Midlands Ltd,123353,19/07/2018,10261857,TC,901579526,6262204,901579526,PN,2650,18/07/2018
Capital Housing Revenue Account,Supervision and Management General,MAN00,External Printing,352,1540,Krishna Enterprises Ltd T/A Steers Printing,123590,12/07/2018,10261466,TC,844218628,,844218628,PN,1540,05/07/2018
Capital Housing Revenue Account,About Face Exhibition,AGM08,Publicity & Marketing,377,450,Krishna Enterprises Ltd T/A Steers Printing,123590,19/07/2018,10261503,TC,844218628,,844218628,PN,540,06/07/2018
Capital Housing Revenue Account,Parks,PKS00,External Contractor & Operator,742,451.38,Mike Bs Security Locksmith Ltd,123947,26/07/2018,10262080,TC,566125244,3680713,566125244,PI,541.66,24/07/2018
Capital Housing Revenue Account,CAST - Private Sector Leasing,CAS03,Furniture,302,950,Rite Price Furniture Ltd,125153,05/07/2018,10261361,TC,,,,PN,1140,03/07/2018
Capital Housing Revenue Account,CAST - Private Sector Leasing,CAS03,Furniture,302,1133.36,Rite Price Furniture Ltd,125153,26/07/2018,10261761,TC,,,,PN,1360.03,16/07/2018
Capital Housing Revenue Account,Domestic Waste Collection/Recycling,REF00,Training fees,11,1110,J Coates HGV Services Ltd,125604,12/07/2018,10261438,TC,113896949,,113896949,PI,1309,04/07/2018
Capital Housing Revenue Account,Garage,WVR00,Materials,303,661.81,Shell U.K. Oil Products Limited,125672,12/07/2018,10261333,TC,235763255,,235 763 255,PN,794.17,03/07/2018
Capital Housing Revenue Account,Central Business Support Services,CSS15,Stationery Supplies,350,474.34,Lyreco,129956,05/07/2018,10261312,TC,927265703,,927265703,PI,567.16,02/07/2018
Capital Housing Revenue Account,"Communications, Consultation and Information Team",BTR20,Publicity & Marketing,377,9250,Touch Broadcasting Co Ltd T/A Rugby FM,131249,12/07/2018,10261509,TC,792071032,,792071032,PN,11100,06/07/2018
Capital Housing Revenue Account,Parks,PKS00,External Contractor & Operator,742,630,I D Welding & Fabrications,131407,05/07/2018,10261349,CS,687567859,,687567859,PI,756,03/07/2018
Capital Housing Revenue Account,Parks,PKS00,External Contractor & Operator,742,1027,I D Welding & Fabrications,131407,19/07/2018,10261531,CS,687567859,,687567859,PI,1232.4,09/07/2018
Capital Housing Revenue Account,Regulatory Services,REG00,External Contractor & Operator,742,900,Aecom Ltd,131603,26/07/2018,10261943,TC,611853162,,611853162,PN,1080,20/07/2018
Capital Housing Revenue Account,Car Parks General,CPK01,Cash Collection,744,1035.72,Jade Security Services Ltd,131711,05/07/2018,10261342,TC,642505654,,642505654,PN,1242.86,03/07/2018
Capital Housing Revenue Account,CAST - Bed & Breakfast,CAS01,Bed and Breakfast Temporary Accommodation,146,585,Personal Redacted Data,132033,12/07/2018,10261490,TC,,,,PN,585,06/07/2018
Capital Housing Revenue Account,CAST - Bed & Breakfast,CAS01,Bed and Breakfast Temporary Accommodation,146,630,Personal Redacted Data,132033,26/07/2018,10262124,TC,,,,PN,630,25/07/2018
Capital Housing Revenue Account,CAST - Bed & Breakfast,CAS01,Bed and Breakfast Temporary Accommodation,146,504,Personal Redacted Data,132033,26/07/2018,10262129,TC,,,,PN,504,25/07/2018
Capital Housing Revenue Account,Town Centre CCTV and Management,TVM00,Other Agencies,734,21460.59,Rugby First Ltd - BID,133176,19/07/2018,10261514,TC,874675571,,874675571,PN,25752.71,09/07/2018
Capital Housing Revenue Account,Parks,PKS00,External Contractor & Operator,742,5555,Easy-gate Ltd,133591,19/07/2018,10261535,TC,737552122,3837882,737552122,PI,6666,09/07/2018
Capital Housing Revenue Account,Fire Alarm maintenance,UMR13,R&M External Contractors,100,489.65,Sunfish Services Ltd,133886,19/07/2018,10261720,CS,845393893,,845393893,PN,588.78,13/07/2018
Capital Housing Revenue Account,Fire Risk Prevention Works,HCE18,Capital Contract Payments,5000,1,Sunfish Services Ltd,133886,19/07/2018,10261720,CS,845393893,,845393893,PN,588.78,13/07/2018
Capital Housing Revenue Account,Visitor Centre,VSC00,Events Tickets - Standard Rated,1404,750,St Andrew's Church,135817,26/07/2018,10261933,NT,,,,PN,750,20/07/2018
Capital Housing Revenue Account,Balance Sheet,BS,Car Loan Scheme,9261,3745,Wycliffe Rugby,136394,26/07/2018,10262145,NT,,,,PN,3745,26/07/2018
Capital Housing Revenue Account,Grants and Subscriptions,LGS00,Grants To Voluntary Organisations,720,1000,Rugby Canoe Club,137933,12/07/2018,10261462,NT,,,,PN,1000,05/07/2018
Capital Housing Revenue Account,Highways,HIG20,Materials,303,801.12,Tarmac Trading Ltd,138465,19/07/2018,10261757,TC,143776102,453791,143776102,PI,961.34,16/07/2018
Capital Housing Revenue Account,Highways,HIG20,Materials,303,727.89,Tarmac Trading Ltd,138465,26/07/2018,10262009,TC,143776102,453791,143776102,PI,873.46,24/07/2018
Capital Housing Revenue Account,CL Grants,CGS00,Grants To Voluntary Organisations,720,17500,Bedworth Rugby & Nuneaton Citizens Advice Bureau,139552,12/07/2018,10261560,TC,,,,PN,21000,09/07/2018
Capital Housing Revenue Account,Planning General/Income,PLN00,Consultancy Costs,740,575,P Rhodes,140076,19/07/2018,10261702,TC,,,,PN,575,12/07/2018
Capital Housing Revenue Account,Payroll/HR scheme,CMP14,IT Capital Expenditure,5025,1084.9,MHR International UK Ltd,140463,05/07/2018,10261256,TC,705850636,,705850636,PI,1301.88,29/06/2018
Capital Housing Revenue Account,Biart Place - Capital,BIA00,Capital Compensation Payments,5010,1500,Personal Redacted Data,140467,26/07/2018,10262016,NT,,,,PN,1500,24/07/2018
Capital Housing Revenue Account,"Communications, Consultation and Information Team",BTR20,Website User Enhancements,383,2291.51,Siteimprove Ltd,140753,05/07/2018,10261395,TC,832969196,4932868,832969196,PN,2749.81,04/07/2018
Capital Housing Revenue Account,Multi-Storey Flats,MSF00,External Contractor & Operator,742,47476.8,StoneWall Security Ltd,140775,12/07/2018,10261398,TC,937387578,6587546,937387578,PN,56972.16,04/07/2018
Capital Housing Revenue Account,Multi-Storey Flats,MSF00,External Contractor & Operator,742,31651.2,StoneWall Security Ltd,140775,12/07/2018,10261400,TC,937387578,6587546,937387578,PN,37981.44,04/07/2018
Capital Housing Revenue Account,Car Parks General,CPK01,External Contractor & Operator,742,621,StoneWall Security Ltd,140775,19/07/2018,10261674,TC,937387578,6587546,937387578,PN,745.2,12/07/2018
Capital Housing Revenue Account,CAST - Bed & Breakfast,CAS01,Bed and Breakfast Temporary Accommodation,146,1155,The Holly Bush Inn,141607,26/07/2018,10262027,TC,897504477,,897504477,PN,1155,24/07/2018
Capital Housing Revenue Account,Crematorium,CRM00,Telephone Expenses,371,538,Zen Internet Ltd,141612,05/07/2018,10261334,TC,686049501,3101568,686049501,PN,645.6,03/07/2018
Capital Housing Revenue Account,Street Cleansing General,STC00,Vehicle Repair and Maintenance,200,445.91,Johnston Sweepers Ltd,141632,12/07/2018,10261520,TC,209523670,,209523670,PN,535.09,09/07/2018
Capital Housing Revenue Account,Domestic Waste Collection/Recycling,REF00,External Contractor & Operator,742,34482.78,Pure Recycling (Warwick) Limited,141883,12/07/2018,10261366,TC,922427047,,922427047,PN,41379.34,03/07/2018
Capital Housing Revenue Account,Gas Heating Systems,UMR01,R&M External Contractors,100,780,Certsure LLP,142076,05/07/2018,10261212,TC,799123488,2513162,799123488,PN,936,29/06/2018
Capital Housing Revenue Account,Grounds Maintenance,PKS20,Agency Staff,3,1357.79,Comensura Limited,142471,05/07/2018,10260904,TC,755321145,4085767,755 3211 45,PN,13971.12,20/06/2018
Capital Housing Revenue Account,Planning General/Income,PLN00,Agency Staff,3,2925.48,Comensura Limited,142471,05/07/2018,10260904,TC,755321145,4085767,755 3211 45,PN,13971.12,20/06/2018
Capital Housing Revenue Account,Gypsy and Traveller Enforcement,PLN10,Agency Staff,3,524.72,Comensura Limited,142471,05/07/2018,10260904,TC,755321145,4085767,755 3211 45,PN,13971.12,20/06/2018
Capital Housing Revenue Account,Domestic Waste Collection/Recycling,REF00,Agency Staff,3,6345.29,Comensura Limited,142471,05/07/2018,10260904,TC,755321145,4085767,755 3211 45,PN,13971.12,20/06/2018
Capital Housing Revenue Account,Street Cleansing General,STC00,Agency Staff,3,489.32,Comensura Limited,142471,05/07/2018,10260904,TC,755321145,4085767,755 3211 45,PN,13971.12,20/06/2018
Capital Housing Revenue Account,Grounds Maintenance,PKS20,Agency Staff,3,1096.61,Comensura Limited,142471,12/07/2018,10261384,TC,755321145,4085767,755 3211 45,PN,10056.03,04/07/2018
Capital Housing Revenue Account,Gypsy and Traveller Enforcement,PLN10,Agency Staff,3,82.5,Comensura Limited,142471,12/07/2018,10261384,TC,755321145,4085767,755 3211 45,PN,10056.03,04/07/2018
Capital Housing Revenue Account,Domestic Waste Collection/Recycling,REF00,Agency Staff,3,6756.74,Comensura Limited,142471,12/07/2018,10261384,TC,755321145,4085767,755 3211 45,PN,10056.03,04/07/2018
Capital Housing Revenue Account,Street Cleansing General,STC00,Agency Staff,3,444.18,Comensura Limited,142471,12/07/2018,10261384,TC,755321145,4085767,755 3211 45,PN,10056.03,04/07/2018
Capital Housing Revenue Account,Estate Management,MAN22,Agency Staff,3,761.05,Comensura Limited,142471,19/07/2018,10261658,TC,755321145,4085767,755 3211 45,PN,9617.93,11/07/2018
Capital Housing Revenue Account,Grounds Maintenance,PKS20,Agency Staff,3,1144.08,Comensura Limited,142471,19/07/2018,10261658,TC,755321145,4085767,755 3211 45,PN,9617.93,11/07/2018
Capital Housing Revenue Account,Domestic Waste Collection/Recycling,REF00,Agency Staff,3,5199.28,Comensura Limited,142471,19/07/2018,10261658,TC,755321145,4085767,755 3211 45,PN,9617.93,11/07/2018
Capital Housing Revenue Account,Street Cleansing General,STC00,Agency Staff,3,554.6,Comensura Limited,142471,19/07/2018,10261658,TC,755321145,4085767,755 3211 45,PN,9617.93,11/07/2018
Capital Housing Revenue Account,Gypsy & Traveller Enforcement,TRA00,Agency Staff,3,356.05,Comensura Limited,142471,19/07/2018,10261658,TC,755321145,4085767,755 3211 45,PN,9617.93,11/07/2018
Capital Housing Revenue Account,Estate Management,MAN22,Agency Staff,3,1405.71,Comensura Limited,142471,26/07/2018,10261859,TC,755321145,4085767,755 3211 45,PN,10249.06,18/07/2018
Capital Housing Revenue Account,Grounds Maintenance,PKS20,Agency Staff,3,1237.39,Comensura Limited,142471,26/07/2018,10261859,TC,755321145,4085767,755 3211 45,PN,10249.06,18/07/2018
Capital Housing Revenue Account,Domestic Waste Collection/Recycling,REF00,Agency Staff,3,5331.38,Comensura Limited,142471,26/07/2018,10261859,TC,755321145,4085767,755 3211 45,PN,10249.06,18/07/2018
Capital Housing Revenue Account,Street Cleansing General,STC00,Agency Staff,3,407,Comensura Limited,142471,26/07/2018,10261859,TC,755321145,4085767,755 3211 45,PN,10249.06,18/07/2018
Capital Housing Revenue Account,Gypsy & Traveller Enforcement,TRA00,Agency Staff,3,159.4,Comensura Limited,142471,26/07/2018,10261859,TC,755321145,4085767,755 3211 45,PN,10249.06,18/07/2018
Capital Housing Revenue Account,Biart Place - Capital,BIA00,Capital Compensation Payments,5010,4871.77,Personal Redacted Data,143966,26/07/2018,10261909,NT,,,,PN,4871.77,19/07/2018
Capital Housing Revenue Account,General Financial Services,GFS00,External Audit Fees,748,13742,Grant Thornton UK LLP,145501,19/07/2018,10260737,TC,835586102,,835586102,PN,16490.4,18/06/2018
Capital Housing Revenue Account,Community Advice & Support Team,CAS00,Telephone Expenses,371,711.5,Housing Partners Ltd,145649,26/07/2018,10261172,TC,834858294,4667857,834858294,PN,853.8,28/06/2018
Capital Housing Revenue Account,Unplanned Maintenance and Repair,UMR00,Vehicle Repair and Maintenance,200,1113.2,The Rugby Bodyshoppe,146033,05/07/2018,10261187,TC,273697122,,273 6971 22,PN,1335.84,28/06/2018
Capital Housing Revenue Account,Biart Place - Capital,BIA00,Capital Compensation Payments,5010,5740.8,Personal Redacted Data,146079,19/07/2018,10261873,NT,,,,PN,5740.8,18/07/2018
Capital Housing Revenue Account,Corporate Property R&M,CPA01,R&M External Contractors,100,842.19,Stanair Industrial Services Ltd,146499,05/07/2018,10261353,CS,,,,PN,1010.63,03/07/2018
Capital Housing Revenue Account,Corporate Property Central Utilities,CPA02,Electricity,130,1572.49,Total Gas & Power Ltd,146631,26/07/2018,10261703,TC,689638949,2172239,689638949,PN,1801.99,13/07/2018
Capital Housing Revenue Account,Sheltered Housing,AGP00,Electricity,130,184.26,Total Gas & Power Ltd,146631,19/07/2018,10261704,TC,689638949,2172239,689638949,PN,8085.55,13/07/2018
Capital Housing Revenue Account,Alfred Green Close AP,AGP01,Electricity,130,221.04,Total Gas & Power Ltd,146631,19/07/2018,10261704,TC,689638949,2172239,689638949,PN,8085.55,13/07/2018
Capital Housing Revenue Account,Avon Court AP,AGP02,Electricity,130,188.76,Total Gas & Power Ltd,146631,19/07/2018,10261704,TC,689638949,2172239,689638949,PN,8085.55,13/07/2018
Capital Housing Revenue Account,Dickinson Court AP,AGP03,Electricity,130,-882.27,Total Gas & Power Ltd,146631,19/07/2018,10261704,TC,689638949,2172239,689638949,PN,8085.55,13/07/2018
Capital Housing Revenue Account,Duffy Place AP,AGP04,Electricity,130,109.07,Total Gas & Power Ltd,146631,19/07/2018,10261704,TC,689638949,2172239,689638949,PN,8085.55,13/07/2018
Capital Housing Revenue Account,Frederick Press Way AP,AGP06,Electricity,130,408.49,Total Gas & Power Ltd,146631,19/07/2018,10261704,TC,689638949,2172239,689638949,PN,8085.55,13/07/2018
Capital Housing Revenue Account,John Thwaites Close AP,AGP08,Electricity,130,77.21,Total Gas & Power Ltd,146631,19/07/2018,10261704,TC,689638949,2172239,689638949,PN,8085.55,13/07/2018
Capital Housing Revenue Account,Mercer Court AP,AGP09,Electricity,130,178.4,Total Gas & Power Ltd,146631,19/07/2018,10261704,TC,689638949,2172239,689638949,PN,8085.55,13/07/2018
Capital Housing Revenue Account,Pettiver Crescent I AP,AGP10,Electricity,130,191.76,Total Gas & Power Ltd,146631,19/07/2018,10261704,TC,689638949,2172239,689638949,PN,8085.55,13/07/2018
Capital Housing Revenue Account,Robotham Close AP,AGP11,Electricity,130,209.94,Total Gas & Power Ltd,146631,19/07/2018,10261704,TC,689638949,2172239,689638949,PN,8085.55,13/07/2018
Capital Housing Revenue Account,Stacey Court AP,AGP12,Electricity,130,53.52,Total Gas & Power Ltd,146631,19/07/2018,10261704,TC,689638949,2172239,689638949,PN,8085.55,13/07/2018
Capital Housing Revenue Account,Stretton Court AP,AGP13,Electricity,130,86.47,Total Gas & Power Ltd,146631,19/07/2018,10261704,TC,689638949,2172239,689638949,PN,8085.55,13/07/2018
Capital Housing Revenue Account,Sun Street/Windsor Street AP,AGP14,Electricity,130,200.5,Total Gas & Power Ltd,146631,19/07/2018,10261704,TC,689638949,2172239,689638949,PN,8085.55,13/07/2018
Capital Housing Revenue Account,Lesley Souter House AP,AGP16,Electricity,130,453.11,Total Gas & Power Ltd,146631,19/07/2018,10261704,TC,689638949,2172239,689638949,PN,8085.55,13/07/2018
Capital Housing Revenue Account,Tanser Court AP,AGP17,Electricity,130,368.57,Total Gas & Power Ltd,146631,19/07/2018,10261704,TC,689638949,2172239,689638949,PN,8085.55,13/07/2018
Capital Housing Revenue Account,Edward Court AP,AGP19,Electricity,130,198.81,Total Gas & Power Ltd,146631,19/07/2018,10261704,TC,689638949,2172239,689638949,PN,8085.55,13/07/2018
Capital Housing Revenue Account,Albert Square AP,AGP20,Electricity,130,575.65,Total Gas & Power Ltd,146631,19/07/2018,10261704,TC,689638949,2172239,689638949,PN,8085.55,13/07/2018
Capital Housing Revenue Account,Eliot Court AP,AGP25,Electricity,130,-23.85,Total Gas & Power Ltd,146631,19/07/2018,10261704,TC,689638949,2172239,689638949,PN,8085.55,13/07/2018
Capital Housing Revenue Account,Clare Court Site,AGP27,Electricity,130,26.67,Total Gas & Power Ltd,146631,19/07/2018,10261704,TC,689638949,2172239,689638949,PN,8085.55,13/07/2018
Capital Housing Revenue Account,Alexandra/James Court AP,AGP30,Electricity,130,127.5,Total Gas & Power Ltd,146631,19/07/2018,10261704,TC,689638949,2172239,689638949,PN,8085.55,13/07/2018
Capital Housing Revenue Account,Hirst Close AP,AGP33,Electricity,130,68.42,Total Gas & Power Ltd,146631,19/07/2018,10261704,TC,689638949,2172239,689638949,PN,8085.55,13/07/2018
Capital Housing Revenue Account,Assheton Close AP,AGP36,Electricity,130,41.83,Total Gas & Power Ltd,146631,19/07/2018,10261704,TC,689638949,2172239,689638949,PN,8085.55,13/07/2018
Capital Housing Revenue Account,Bennett Court/Warwick Road AP,AGP38,Electricity,130,33.32,Total Gas & Power Ltd,146631,19/07/2018,10261704,TC,689638949,2172239,689638949,PN,8085.55,13/07/2018
Capital Housing Revenue Account,Brookside Pailton AP,AGP40,Electricity,130,48.22,Total Gas & Power Ltd,146631,19/07/2018,10261704,TC,689638949,2172239,689638949,PN,8085.55,13/07/2018
Capital Housing Revenue Account,Clifton Road AP,AGP41,Electricity,130,18.02,Total Gas & Power Ltd,146631,19/07/2018,10261704,TC,689638949,2172239,689638949,PN,8085.55,13/07/2018
Capital Housing Revenue Account,Deepmore Road/Lytham Road AP,AGP42,Electricity,130,137.12,Total Gas & Power Ltd,146631,19/07/2018,10261704,TC,689638949,2172239,689638949,PN,8085.55,13/07/2018
Capital Housing Revenue Account,Edmondson Close Dunchurch AP,AGP44,Electricity,130,79.55,Total Gas & Power Ltd,146631,19/07/2018,10261704,TC,689638949,2172239,689638949,PN,8085.55,13/07/2018
Capital Housing Revenue Account,Featherbed Lane I AP,AGP45,Electricity,130,134.15,Total Gas & Power Ltd,146631,19/07/2018,10261704,TC,689638949,2172239,689638949,PN,8085.55,13/07/2018
Capital Housing Revenue Account,Fox Close AP,AGP47,Electricity,130,42.31,Total Gas & Power Ltd,146631,19/07/2018,10261704,TC,689638949,2172239,689638949,PN,8085.55,13/07/2018
Capital Housing Revenue Account,Great Balance Brinklow AP,AGP48,Electricity,130,22.81,Total Gas & Power Ltd,146631,19/07/2018,10261704,TC,689638949,2172239,689638949,PN,8085.55,13/07/2018
Capital Housing Revenue Account,Harold Cox Place AP,AGP51,Electricity,130,51.05,Total Gas & Power Ltd,146631,19/07/2018,10261704,TC,689638949,2172239,689638949,PN,8085.55,13/07/2018
Capital Housing Revenue Account,Jackson Road I AP,AGP53,Electricity,130,23.02,Total Gas & Power Ltd,146631,19/07/2018,10261704,TC,689638949,2172239,689638949,PN,8085.55,13/07/2018
Capital Housing Revenue Account,Lever Road I AP,AGP57,Electricity,130,111.66,Total Gas & Power Ltd,146631,19/07/2018,10261704,TC,689638949,2172239,689638949,PN,8085.55,13/07/2018
Capital Housing Revenue Account,Meadow Way/Primrose Court AP,AGP58,Electricity,130,81.26,Total Gas & Power Ltd,146631,19/07/2018,10261704,TC,689638949,2172239,689638949,PN,8085.55,13/07/2018
Capital Housing Revenue Account,Norman Road AP,AGP60,Electricity,130,9.72,Total Gas & Power Ltd,146631,19/07/2018,10261704,TC,689638949,2172239,689638949,PN,8085.55,13/07/2018
Capital Housing Revenue Account,Patterdale AP,AGP61,Electricity,130,22.67,Total Gas & Power Ltd,146631,19/07/2018,10261704,TC,689638949,2172239,689638949,PN,8085.55,13/07/2018
Capital Housing Revenue Account,The Kent AP,AGP67,Electricity,130,45.57,Total Gas & Power Ltd,146631,19/07/2018,10261704,TC,689638949,2172239,689638949,PN,8085.55,13/07/2018
Capital Housing Revenue Account,Victoria Street/Lawford Road AP,AGP68,Electricity,130,12.28,Total Gas & Power Ltd,146631,19/07/2018,10261704,TC,689638949,2172239,689638949,PN,8085.55,13/07/2018
Capital Housing Revenue Account,Parkfield Road/Lea Crescent AP,AGP71,Electricity,130,137.3,Total Gas & Power Ltd,146631,19/07/2018,10261704,TC,689638949,2172239,689638949,PN,8085.55,13/07/2018
Capital Housing Revenue Account,Pennington Street/Round Street AP,AGP72,Electricity,130,82.35,Total Gas & Power Ltd,146631,19/07/2018,10261704,TC,689638949,2172239,689638949,PN,8085.55,13/07/2018
Capital Housing Revenue Account,Control Centre CCTV,CCE01,Electricity,130,451.94,Total Gas & Power Ltd,146631,19/07/2018,10261704,TC,689638949,2172239,689638949,PN,8085.55,13/07/2018
Capital Housing Revenue Account,Supervision and Management General,MAN00,Electricity,130,128.79,Total Gas & Power Ltd,146631,19/07/2018,10261704,TC,689638949,2172239,689638949,PN,8085.55,13/07/2018
Capital Housing Revenue Account,Multi-Storey Flats,MSF00,Electricity,130,2408.1,Total Gas & Power Ltd,146631,19/07/2018,10261704,TC,689638949,2172239,689638949,PN,8085.55,13/07/2018
Capital Housing Revenue Account,Woodside Park,TVR00,Electricity,130,335.62,Total Gas & Power Ltd,146631,19/07/2018,10261704,TC,689638949,2172239,689638949,PN,8085.55,13/07/2018
Capital Housing Revenue Account,Corporate Property Central Utilities,CPA02,Electricity,130,8625.22,Total Gas & Power Ltd,146631,26/07/2018,10261705,TC,689638949,2172239,689638949,PN,10881.81,13/07/2018
Capital Housing Revenue Account,Crematorium,CRM00,Electricity,130,1130.53,Total Gas & Power Ltd,146631,26/07/2018,10261705,TC,689638949,2172239,689638949,PN,10881.81,13/07/2018
Capital Housing Revenue Account,Unplanned Maintenance and Repair,UMR00,Electricity,130,-710.65,Total Gas & Power Ltd,146631,26/07/2018,10261705,TC,689638949,2172239,689638949,PN,10881.81,13/07/2018
Capital Housing Revenue Account,WSU Depot,WDP00,Electricity,130,40.33,Total Gas & Power Ltd,146631,26/07/2018,10261705,TC,689638949,2172239,689638949,PN,10881.81,13/07/2018
Capital Housing Revenue Account,Biart Place - Capital,BIA00,Capital Compensation Payments,5010,5647.4,Personal Redacted Data,146793,05/07/2018,10261164,NT,,,,PN,5647.4,28/06/2018
Capital Housing Revenue Account,Multi-Storey Flats,MSF00,Other Miscellaneous Expenses,444,6300,Environmental Essentials Ltd,146842,19/07/2018,10260561,TC,844887474,5097507,844887474,PN,7560,07/06/2018
Capital Housing Revenue Account,Asbestos Surveys,UMR05,R&M External Contractors,100,440,Environmental Essentials Ltd,146842,05/07/2018,10261185,TC,844887474,5097507,844887474,PN,528,28/06/2018
Capital Housing Revenue Account,Retired Employees,RET00,Employers' Superannuation Contribution,2,25916.67,WCC Pension Fund,146914,05/07/2018,10261426,NT,,,,PN,25916.67,04/07/2018
Capital Housing Revenue Account,Retired Employees,RET00,Additional Pension Payments,14,9492,WCC Pension Fund,146914,12/07/2018,10261526,NT,,,,PN,9492,09/07/2018
Capital Housing Revenue Account,Domestic Waste Collection/Recycling,REF00,External Contractor & Operator,742,1020,James Baxter Haulage Ltd,147159,05/07/2018,10261215,TC,620070986,,620070986,PN,1224,29/06/2018
Capital Housing Revenue Account,Domestic Waste Collection/Recycling,REF00,External Contractor & Operator,742,1360,James Baxter Haulage Ltd,147159,19/07/2018,10261671,TC,620070986,,620070986,PN,1632,12/07/2018
Capital Housing Revenue Account,Domestic Waste Collection/Recycling,REF00,External Contractor & Operator,742,510,James Baxter Haulage Ltd,147159,19/07/2018,10261672,TC,620070986,,620070986,PN,612,12/07/2018
Capital Housing Revenue Account,Domestic Waste Collection/Recycling,REF00,External Contractor & Operator,742,510,James Baxter Haulage Ltd,147159,26/07/2018,10261890,TC,620070986,,620070986,PN,612,18/07/2018
Capital Housing Revenue Account,Planning and LLPG system,PLA00,IT Capital Expenditure,5025,4398.45,Aligned Assets Limited,147596,26/07/2018,10262087,TC,268934747,4610724,268934747,PN,5278.14,25/07/2018
Capital Housing Revenue Account,Town Centre Improvements,TWN00,Other Miscellaneous Expenses,444,1155.62,Hampshire Flag Company,147771,19/07/2018,10261682,TC,339361641,4359902,339361641,PN,1386.74,12/07/2018
Capital Housing Revenue Account,Biart Place - Capital,BIA00,Capital Compensation Payments,5010,3885.84,Personal Redacted Data,147973,19/07/2018,10261831,NT,,,,PN,3885.84,17/07/2018
Capital Housing Revenue Account,Corporate Property R&M,CPA01,R&M External Contractors,100,840,Press & Starkey,148069,19/07/2018,10261882,TC,,,,PN,1008,18/07/2018
Capital Housing Revenue Account,Biart Place - Capital,BIA00,Capital Compensation Payments,5010,5154.56,Personal Redacted Data,148518,05/07/2018,10261167,NT,,,,PN,5154.56,28/06/2018
Capital Housing Revenue Account,Gas Heating Systems,UMR01,R&M External Contractors,100,2840.78,Robert Heath Heating Ltd,148858,12/07/2018,10261423,CS,927490989,1773699,927 4909 89,PN,4064.71,04/07/2018
Capital Housing Revenue Account,Repairs and Maintenance - Void works,UMR09,R&M External Contractors,100,499.8,Robert Heath Heating Ltd,148858,12/07/2018,10261423,CS,927490989,1773699,927 4909 89,PN,4064.71,04/07/2018
Capital Housing Revenue Account,Miscellaneous Unplanned Maintenance and Repair,UMR17,R&M External Contractors,100,46.68,Robert Heath Heating Ltd,148858,12/07/2018,10261423,CS,927490989,1773699,927 4909 89,PN,4064.71,04/07/2018
Capital Housing Revenue Account,Gas Heating Systems,UMR01,R&M External Contractors,100,28447.94,Robert Heath Heating Ltd,148858,12/07/2018,10261424,CS,927490989,1773699,927 4909 89,PN,34137.53,04/07/2018
Capital Housing Revenue Account,CAST - Private Sector Leasing,CAS03,Building cleaning,170,1002.96,Solutions Services,148937,05/07/2018,10261240,TC,831753431,,831753431,PN,1203.55,29/06/2018
Capital Housing Revenue Account,Parks,PKS00,Maintenance of Equipment,301,687.5,AHS Ltd,149255,12/07/2018,10261226,TC,621583942,2803955,621583942,PI,825,29/06/2018
Capital Housing Revenue Account,Garage,WVR00,Materials,303,990.93,Grenke Leasing Ltd,149293,05/07/2018,10261295,TC,803892226,4539806,803892226,PN,1189.12,02/07/2018
Capital Housing Revenue Account,Garage,WVR00,Materials,303,1127.85,Grenke Leasing Ltd,149293,05/07/2018,10261296,TC,803892226,4539806,803892226,PN,1353.42,02/07/2018
Capital Housing Revenue Account,Garage,WVR00,Materials,303,737.52,Tom Tom International BV,149311,19/07/2018,10261636,TC,273433560,,273433560,PN,885.02,10/07/2018
Capital Housing Revenue Account,Play Projects (revenue),LSD09,Development Activities,450,500,Climb Hire,149379,12/07/2018,10261483,TC,,,,PN,500,05/07/2018
Capital Housing Revenue Account,Repairs and Maintenance - Void works,UMR09,R&M External Contractors,100,0.01,Close Circuit Security Services Ltd,149426,05/07/2018,10261253,TC,695360895,3543850,695360895,PN,2087.71,29/06/2018
Capital Housing Revenue Account,Miscellaneous Unplanned Maintenance and Repair,UMR17,R&M External Contractors,100,644.2,Close Circuit Security Services Ltd,149426,05/07/2018,10261253,TC,695360895,3543850,695360895,PN,2087.71,29/06/2018
Capital Housing Revenue Account,Control Centre CCTV,CCE01,Maintenance of Equipment,301,1049.55,Close Circuit Security Services Ltd,149426,05/07/2018,10261253,TC,695360895,3543850,695360895,PN,2087.71,29/06/2018
Capital Housing Revenue Account,Control Centre CCTV,CCE01,Purchases for Resale,305,46,Close Circuit Security Services Ltd,149426,05/07/2018,10261253,TC,695360895,3543850,695360895,PN,2087.71,29/06/2018
Capital Housing Revenue Account,Control Centre CCTV,CCE01,Maintenance of Equipment,301,459.8,Close Circuit Security Services Ltd,149426,05/07/2018,10261420,TC,695360895,3543850,695360895,PN,551.76,04/07/2018
Capital Housing Revenue Account,Control Centre CCTV,CCE01,Maintenance of Equipment,301,2666.66,Close Circuit Security Services Ltd,149426,05/07/2018,10261421,TC,695360895,3543850,695360895,PN,3199.99,04/07/2018
Capital Housing Revenue Account,Corporate Property R&M,CPA01,R&M External Contractors,100,441.5,Close Circuit Security Services Ltd,149426,19/07/2018,10261528,TC,695360895,3543850,695360895,PN,529.8,09/07/2018
Capital Housing Revenue Account,Control Centre CCTV,CCE01,Maintenance of Equipment,301,1632.74,Close Circuit Security Services Ltd,149426,19/07/2018,10261719,TC,695360895,3543850,695360895,PN,1959.29,13/07/2018
Capital Housing Revenue Account,Miscellaneous Unplanned Maintenance and Repair,UMR17,R&M External Contractors,100,1650,Close Circuit Security Services Ltd,149426,19/07/2018,10261897,TC,695360895,3543850,695360895,PN,1980,18/07/2018
Capital Housing Revenue Account,Estate Management,MAN22,Estates,457,900,Close Circuit Security Services Ltd,149426,19/07/2018,10261898,TC,695360895,3543850,695360895,PN,1808.65,18/07/2018
Capital Housing Revenue Account,Disabled Adaptations,HCR01,Capital Contract Payments,5000,607.21,Close Circuit Security Services Ltd,149426,19/07/2018,10261898,TC,695360895,3543850,695360895,PN,1808.65,18/07/2018
Capital Housing Revenue Account,Electrical maintenance,UMR10,R&M External Contractors,100,204.87,Close Circuit Security Services Ltd,149426,19/07/2018,10261899,TC,695360895,3543850,695360895,PN,1669.49,18/07/2018
Capital Housing Revenue Account,Miscellaneous Unplanned Maintenance and Repair,UMR17,R&M External Contractors,100,92,Close Circuit Security Services Ltd,149426,19/07/2018,10261899,TC,695360895,3543850,695360895,PN,1669.49,18/07/2018
Capital Housing Revenue Account,Control Centre CCTV,CCE01,Maintenance of Equipment,301,1094.38,Close Circuit Security Services Ltd,149426,19/07/2018,10261899,TC,695360895,3543850,695360895,PN,1669.49,18/07/2018
Capital Housing Revenue Account,Miscellaneous Unplanned Maintenance and Repair,UMR17,R&M External Contractors,100,93,Close Circuit Security Services Ltd,149426,19/07/2018,10261900,TC,695360895,3543850,695360895,PN,779.33,18/07/2018
Capital Housing Revenue Account,Control Centre CCTV,CCE01,Maintenance of Equipment,301,556.44,Close Circuit Security Services Ltd,149426,19/07/2018,10261900,TC,695360895,3543850,695360895,PN,779.33,18/07/2018
Capital Housing Revenue Account,The Benn Hall,BHL00,Events Tickets - Zero Rated,1405,1889.55,M Freeman,149558,05/07/2018,10261352,TC,,,,PN,1889.55,03/07/2018
Capital Housing Revenue Account,Crematorium,CRM00,R&M External Contractors,100,9992.75,Facultatieve Technologies Limited,149571,26/07/2018,10261950,TC,GB169285327,633222,GB 169 2853 27,PN,11991.3,20/07/2018
Capital Housing Revenue Account,Crematorium,CRM00,R&M External Contractors,100,2763,Vivedia Ltd,149624,12/07/2018,10261451,TC,8830029332,,8830029332,PN,3315.6,05/07/2018
Capital Housing Revenue Account,Crematorium,CRM00,Organist Fees,414,1125,Tracey Daulman,149686,05/07/2018,10261192,TC,,,,PN,1125,28/06/2018
Capital Housing Revenue Account,Crematorium,CRM00,Organist Fees,414,1356,Tracey Daulman,149686,26/07/2018,10262057,TC,,,,PN,1356,24/07/2018
Capital Housing Revenue Account,Homelessness Prevention,CAS06,Other Miscellaneous Expenses,444,1185,Rob Roy Removals,149762,12/07/2018,10261561,TC,,,,PN,1185,09/07/2018
Capital Housing Revenue Account,Heating Upgrades,HIM01,Capital Contract Payments,5000,1466.8,PTS Rugby,149845,12/07/2018,10261458,TC,408556737,,408556737,PN,1760.16,05/07/2018
Capital Housing Revenue Account,Heating Upgrades,HIM01,Capital Contract Payments,5000,998.88,PTS Rugby,149845,12/07/2018,10261459,TC,408556737,,408556737,PN,1198.66,05/07/2018
Capital Housing Revenue Account,Heating Upgrades,HIM01,Capital Contract Payments,5000,851.78,PTS Rugby,149845,12/07/2018,10261460,TC,408556737,,408556737,PN,1022.14,05/07/2018
Capital Housing Revenue Account,Heating Upgrades,HIM01,Capital Contract Payments,5000,3058.2,PTS Rugby,149845,12/07/2018,10261461,TC,408556737,,408556737,PN,3669.84,05/07/2018
Capital Housing Revenue Account,Garage,WVR00,Software Maintenance,374,880,Hickleys Ltd,149944,19/07/2018,10261722,TC,925612234,6443129,925612234,PN,1056,13/07/2018
Capital Housing Revenue Account,Biart Place - Capital,BIA00,Capital Compensation Payments,5010,5689.41,Personal Redacted Data,149959,12/07/2018,10261660,NT,,,,PN,5689.41,11/07/2018
Capital Housing Revenue Account,Grounds Maintenance,PKS20,Tyres,205,52,Lodge Tyre Co Ltd,150185,19/07/2018,10261494,TC,,531793,,PN,626.4,06/07/2018
Capital Housing Revenue Account,Domestic Waste Collection/Recycling,REF00,Tyres,205,60,Lodge Tyre Co Ltd,150185,19/07/2018,10261494,TC,,531793,,PN,626.4,06/07/2018
Capital Housing Revenue Account,Street Cleansing General,STC00,Tyres,205,265,Lodge Tyre Co Ltd,150185,19/07/2018,10261494,TC,,531793,,PN,626.4,06/07/2018
Capital Housing Revenue Account,Unplanned Maintenance and Repair,UMR00,Tyres,205,130,Lodge Tyre Co Ltd,150185,19/07/2018,10261494,TC,,531793,,PN,626.4,06/07/2018
Capital Housing Revenue Account,Trade Waste Collection,WWC01,Tyres,205,15,Lodge Tyre Co Ltd,150185,19/07/2018,10261494,TC,,531793,,PN,626.4,06/07/2018
Capital Housing Revenue Account,Unplanned Maintenance and Repair,UMR00,R&M External Contractors,100,790,DACT Fire & Security Ltd,150187,12/07/2018,10261530,TC,211401577,8122194,211401577,PI,948,09/07/2018
Capital Housing Revenue Account,Miscellaneous Unplanned Maintenance and Repair,UMR17,R&M External Contractors,100,433,Chubb Fire & Security Ltd,150200,26/07/2018,10261942,TC,439475808,,439475808,PN,519.6,20/07/2018
Capital Housing Revenue Account,Parks,PKS00,R&M External Contractors,100,500,Rugby Welding Services,150322,05/07/2018,10261225,TC,,,,PI,500,29/06/2018
Capital Housing Revenue Account,Corporate Assurance,RES40,Consultancy Costs,740,5050,TIAA,150337,19/07/2018,10261297,TC,792453014,,792453014,PN,6060,02/07/2018
Capital Housing Revenue Account,Corporate Assurance,RES40,Consultancy Costs,740,-2600,TIAA,150337,19/07/2018,10261298,TC,792453014,,792453014,PN,-3120,02/07/2018
Capital Housing Revenue Account,CAST - Private Sector Leasing,CAS03,New Equipment,300,323.31,Personal Redacted Data,150372,05/07/2018,10261216,NT,,,,PN,6410.29,29/06/2018
Capital Housing Revenue Account,CAST - Private Sector Leasing,CAS03,Furniture,302,4860.68,Personal Redacted Data,150372,05/07/2018,10261216,NT,,,,PN,6410.29,29/06/2018
Capital Housing Revenue Account,CAST - Private Sector Leasing,CAS03,Other Miscellaneous Expenses,444,157.92,Personal Redacted Data,150372,05/07/2018,10261216,NT,,,,PN,6410.29,29/06/2018
Capital Housing Revenue Account,Britain In Bloom,PKS09,External Contractor & Operator,742,1650,Rimo Growers Ltd,150510,12/07/2018,10261322,TC,163829583,10647096,163829583,PI,1980,03/07/2018
Capital Housing Revenue Account,Corporate Property R&M,CPA01,R&M External Contractors,100,526,Darcy Products Ltd,150529,19/07/2018,10261896,TC,203300636,,203300636,PN,631.2,18/07/2018
Capital Housing Revenue Account,CL Grants,CGS00,Grants To Voluntary Organisations,720,2490,Tea Leaf Tales,150596,19/07/2018,10261794,NT,,,,PN,2490,17/07/2018
Capital Housing Revenue Account,Land Drainage General,LDR00,External Contractor & Operator,742,718.69,J & I Critchley,150715,12/07/2018,10261659,NT,,,,PN,718.69,11/07/2018
Capital Housing Revenue Account,Lift maintenance,UMR14,R&M External Contractors,100,2655,Lift & Engineering Services Ltd,150984,26/07/2018,10261992,TC,377355519,1913516,377355519,PN,3186,24/07/2018
Capital Housing Revenue Account,Grounds Maintenance,PKS20,External Contractor & Operator,742,5900,Glendale Grounds Management Ltd,151025,05/07/2018,10261271,TC,203324952,,203324952,PN,7080,02/07/2018
Capital Housing Revenue Account,Grounds Maintenance,PKS20,External Contractor & Operator,742,3418.08,Glendale Grounds Management Ltd,151025,05/07/2018,10261272,TC,203324952,,203324952,PN,4101.7,02/07/2018
Capital Housing Revenue Account,CAST - Private Sector Leasing,CAS03,Private Sector Leasing Scheme Properties,148,2250,Personal Redacted Data,151047,12/07/2018,10261454,TC,,,,PN,2250,05/07/2018
Capital Housing Revenue Account,Unplanned Maintenance and Repair,UMR00,Materials,303,1362.93,DCTUK T/A Discount Carpet Tiles,151067,26/07/2018,10261830,TC,903973512,6130667,903973512,PN,1635.52,17/07/2018
Capital Housing Revenue Account,Corporate Property R&M,CPA01,R&M External Contractors,100,3184.78,JLA Ltd,151207,05/07/2018,10261180,TC,566894869,1094178,566894869,PN,3821.74,28/06/2018
Capital Housing Revenue Account,CAST - Private Sector Leasing,CAS03,Private Sector Leasing Scheme Properties,148,1500,Personal Redacted Data,151216,12/07/2018,10261453,TC,,,,PN,1500,05/07/2018
Capital Housing Revenue Account,CAST - Private Sector Leasing,CAS03,Private Sector Leasing Scheme Properties,148,1350,Personal Redacted Data,151216,26/07/2018,10261741,TC,,,,PN,1350,16/07/2018
Capital Housing Revenue Account,CAST - Private Sector Leasing,CAS03,Private Sector Leasing Scheme Properties,148,1350,Personal Redacted Data,151216,26/07/2018,10261872,TC,,,,PN,1350,18/07/2018
Capital Housing Revenue Account,Art Gallery and Museum,AGM00,Childcare vouchers admin fee,7,9.72,Busy Bees Benefits Ltd,151230,12/07/2018,10261446,NT,,6758298,,PN,3658.85,05/07/2018
Capital Housing Revenue Account,Council Tax and NNDR Collection,CTX01,Childcare vouchers admin fee,7,0.8,Busy Bees Benefits Ltd,151230,12/07/2018,10261446,NT,,6758298,,PN,3658.85,05/07/2018
Capital Housing Revenue Account,Legal Services,DEM20,Childcare vouchers admin fee,7,9.09,Busy Bees Benefits Ltd,151230,12/07/2018,10261446,NT,,6758298,,PN,3658.85,05/07/2018
Capital Housing Revenue Account,Economic Development General,ECD00,Childcare vouchers admin fee,7,2.4,Busy Bees Benefits Ltd,151230,12/07/2018,10261446,NT,,6758298,,PN,3658.85,05/07/2018
Capital Housing Revenue Account,WTHEIP - Warwickshire Together Homelessness Early Intervention Project,HIP00,Childcare vouchers admin fee,7,9.72,Busy Bees Benefits Ltd,151230,12/07/2018,10261446,NT,,6758298,,PN,3658.85,05/07/2018
Capital Housing Revenue Account,Licencing,LIC00,Childcare vouchers admin fee,7,3.2,Busy Bees Benefits Ltd,151230,12/07/2018,10261446,NT,,6758298,,PN,3658.85,05/07/2018
Capital Housing Revenue Account,Sports and Recreation,LSD03,Childcare vouchers admin fee,7,8.4,Busy Bees Benefits Ltd,151230,12/07/2018,10261446,NT,,6758298,,PN,3658.85,05/07/2018
Capital Housing Revenue Account,Estate Management,MAN22,Childcare vouchers admin fee,7,9.72,Busy Bees Benefits Ltd,151230,12/07/2018,10261446,NT,,6758298,,PN,3658.85,05/07/2018
Capital Housing Revenue Account,Planning General/Income,PLN00,Childcare vouchers admin fee,7,14.52,Busy Bees Benefits Ltd,151230,12/07/2018,10261446,NT,,6758298,,PN,3658.85,05/07/2018
Capital Housing Revenue Account,Domestic Waste Collection/Recycling,REF00,Childcare vouchers admin fee,7,1,Busy Bees Benefits Ltd,151230,12/07/2018,10261446,NT,,6758298,,PN,3658.85,05/07/2018
Capital Housing Revenue Account,Regulatory Services,REG00,Childcare vouchers admin fee,7,19.44,Busy Bees Benefits Ltd,151230,12/07/2018,10261446,NT,,6758298,,PN,3658.85,05/07/2018
Capital Housing Revenue Account,Financial Services,RES10,Childcare vouchers admin fee,7,21.44,Busy Bees Benefits Ltd,151230,12/07/2018,10261446,NT,,6758298,,PN,3658.85,05/07/2018
Capital Housing Revenue Account,Human Resources,RES30,Childcare vouchers admin fee,7,1.2,Busy Bees Benefits Ltd,151230,12/07/2018,10261446,NT,,6758298,,PN,3658.85,05/07/2018
Capital Housing Revenue Account,Unplanned Maintenance and Repair,UMR00,Childcare vouchers admin fee,7,14.48,Busy Bees Benefits Ltd,151230,12/07/2018,10261446,NT,,6758298,,PN,3658.85,05/07/2018
Capital Housing Revenue Account,Visitor Centre,VSC00,Childcare vouchers admin fee,7,4.8,Busy Bees Benefits Ltd,151230,12/07/2018,10261446,NT,,6758298,,PN,3658.85,05/07/2018
Capital Housing Revenue Account,Trade Waste Collection,WWC01,Childcare vouchers admin fee,7,9.72,Busy Bees Benefits Ltd,151230,12/07/2018,10261446,NT,,6758298,,PN,3658.85,05/07/2018
Capital Housing Revenue Account,Balance Sheet,BS,Revenue Section Agreements,9865,2614.9,Long Lawford PC Offsite Rec Maintenance,151232,05/07/2018,10261286,TC,,,,PN,2614.9,02/07/2018
Capital Housing Revenue Account,Maintenance of Customer Services Systems,CIS21,Software Maintenance,374,5390,Bramble Hub Limited,151305,19/07/2018,10261370,TC,188679823,4136381,188679823,PI,6468,03/07/2018
Capital Housing Revenue Account,Maintenance of Customer Services Systems,CIS21,Software Maintenance,374,32762,Bramble Hub Limited,151305,19/07/2018,10261751,TC,188679823,4136381,188679823,PI,39314.4,16/07/2018
Capital Housing Revenue Account,Crime and Disorder Activities,CAD00,Development Activities,450,450,Buddi Ltd,151339,05/07/2018,10261255,TC,867696451,5308826,867696451,PI,540,29/06/2018
Capital Housing Revenue Account,Corporate Assurance,RES40,Training fees,11,1307.2,Amberwing Ltd,151430,12/07/2018,10261532,TC,845635211,5213437,845635211,PI,1568.64,09/07/2018
Capital Housing Revenue Account,Play Projects (revenue),LSD09,Development Activities,450,1300,Prestige Bouncy Castles,151510,05/07/2018,10261193,TC,,,,PN,1300,28/06/2018
Capital Housing Revenue Account,Broadband & internet,TEL01,Telephone Expenses,371,666.67,HighSpeed Office Ltd,151543,19/07/2018,10261492,TC,766384980,3935705,766384980,PN,800,06/07/2018
Capital Housing Revenue Account,Human Resources Centralised Services,RES31,Recruitment Expenses,12,1950,Coventry & Warwickshire Growth Hub Ltd,151579,12/07/2018,10261646,TC,237914782,9146585,237914782,PI,2340,10/07/2018
Capital Housing Revenue Account,Human Resources Centralised Services,RES31,Recruitment Expenses,12,1155,Coventry & Warwickshire Growth Hub Ltd,151579,12/07/2018,10261647,TC,237914782,9146585,237914782,PI,1386,10/07/2018
Capital Housing Revenue Account,Town Centre Improvements,TWN00,Development Activities,450,5250,Market Place Management Forum,151586,19/07/2018,10261512,TC,224535131,6253601,224535131,PN,6300,09/07/2018
Capital Housing Revenue Account,Planning General/Income,PLN00,Consultancy Costs,740,3811.43,Nigel Reeves Planning & Urban Design Ltd,151614,19/07/2018,10261669,TC,,,,PN,3811.43,12/07/2018
Capital Housing Revenue Account,The Benn Hall,BHL00,Purchases for Resale,305,616.17,Drays Wholesale Limited,151618,12/07/2018,10261518,TC,128586875,,128586875,PN,739.4,09/07/2018
Capital Housing Revenue Account,The Benn Hall,BHL00,Purchases for Resale,305,1261.4,Drays Wholesale Limited,151618,12/07/2018,10261527,TC,128586875,,128586875,PN,1513.68,09/07/2018
Capital Housing Revenue Account,The Benn Hall,BHL00,Purchases for Resale,305,1343.47,Drays Wholesale Limited,151618,12/07/2018,10261595,TC,128586875,,128586875,PN,1612.16,10/07/2018
Capital Housing Revenue Account,The Benn Hall,BHL00,Purchases for Resale,305,732.27,Drays Wholesale Limited,151618,19/07/2018,10261776,TC,128586875,,128586875,PN,878.72,16/07/2018
Capital Housing Revenue Account,CAST - Private Sector Leasing,CAS03,Gas,131,865.94,Corona Energy,151649,26/07/2018,10261850,TC,,,,PN,1039.13,18/07/2018
Capital Housing Revenue Account,Unplanned Maintenance and Repair,UMR00,Materials,303,429.35,Apollo Products Ltd,151677,05/07/2018,10261276,TC,691625024,,691625024,PN,515.22,02/07/2018
Capital Housing Revenue Account,Unplanned Maintenance and Repair,UMR00,Materials,303,429.35,Apollo Products Ltd,151677,05/07/2018,10261277,TC,691625024,,691625024,PN,515.22,02/07/2018
Capital Housing Revenue Account,The Benn Hall,BHL00,Events Tickets - Zero Rated,1405,2344.13,Ann Makin,151713,12/07/2018,10261635,TC,,,,PN,2344.13,10/07/2018
Capital Housing Revenue Account,CAST - Private Sector Leasing,CAS03,Private Sector Leasing Scheme Properties,148,1649.95,Personal Redacted Data,151718,12/07/2018,10261656,TC,,,,PN,1649.95,11/07/2018
Capital Housing Revenue Account,Garage,WVR00,Materials,303,2455.58,Tate Fuel Oils Ltd,151733,12/07/2018,10261544,TC,301189982,1301975,301189982,PI,2946.7,09/07/2018
Capital Housing Revenue Account,WTHEIP - Warwickshire Together Homelessness Early Intervention Project,HIP00,Payments to Other Local Authorities,710,2221.33,People Potential Possibilites T/A P3 Charity,151739,19/07/2018,10261323,TC,,2495423,,PI,2221.33,03/07/2018
Capital Housing Revenue Account,WTHEIP - Warwickshire Together Homelessness Early Intervention Project,HIP00,Payments to Other Local Authorities,710,2221.33,People Potential Possibilites T/A P3 Charity,151739,19/07/2018,10261727,TC,,2495423,,PI,2221.33,13/07/2018
Capital Housing Revenue Account,Heating Upgrades,HIM01,Capital Contract Payments,5000,4292.74,UK Gas Services Ltd,151764,05/07/2018,10261248,CS,974960175,2976617,974960175,PN,5151.29,29/06/2018
Capital Housing Revenue Account,Heating Upgrades,HIM01,Capital Contract Payments,5000,3589.36,UK Gas Services Ltd,151764,05/07/2018,10261250,CS,974960175,2976617,974960175,PN,4307.23,29/06/2018
Capital Housing Revenue Account,Control Centre (HRA),CCE00,New Equipment,300,3853.5,Tunstall Healthcare,151791,05/07/2018,10261148,TC,182879709,1332249,182879709,PI,4624.2,28/06/2018
Capital Housing Revenue Account,Art Gallery and Museum,AGM00,Building cleaning,170,2343.75,Kingdom Service Group,151795,19/07/2018,10261275,CS,582329526,2795197,582329526,PN,37045.31,02/07/2018
Capital Housing Revenue Account,Sheltered Housing,AGP00,Building cleaning,170,13090.67,Kingdom Service Group,151795,19/07/2018,10261275,CS,582329526,2795197,582329526,PN,37045.31,02/07/2018
Capital Housing Revenue Account,The Benn Hall,BHL00,Building cleaning,170,1406.25,Kingdom Service Group,151795,19/07/2018,10261275,CS,582329526,2795197,582329526,PN,37045.31,02/07/2018
Capital Housing Revenue Account,Community Advice & Support Team,CAS00,Building cleaning,170,124.29,Kingdom Service Group,151795,19/07/2018,10261275,CS,582329526,2795197,582329526,PN,37045.31,02/07/2018
Capital Housing Revenue Account,Car Parks General,CPK01,Building cleaning,170,398,Kingdom Service Group,151795,19/07/2018,10261275,CS,582329526,2795197,582329526,PN,37045.31,02/07/2018
Capital Housing Revenue Account,Crematorium,CRM00,Building cleaning,170,826,Kingdom Service Group,151795,19/07/2018,10261275,CS,582329526,2795197,582329526,PN,37045.31,02/07/2018
Capital Housing Revenue Account,Estate Management,MAN22,Building cleaning,170,2819.57,Kingdom Service Group,151795,19/07/2018,10261275,CS,582329526,2795197,582329526,PN,37045.31,02/07/2018
Capital Housing Revenue Account,Multi-Storey Flats,MSF00,Building cleaning,170,1584.56,Kingdom Service Group,151795,19/07/2018,10261275,CS,582329526,2795197,582329526,PN,37045.31,02/07/2018
Capital Housing Revenue Account,Town Hall,OFF00,Building cleaning,170,4634.67,Kingdom Service Group,151795,19/07/2018,10261275,CS,582329526,2795197,582329526,PN,37045.31,02/07/2018
Capital Housing Revenue Account,Parks,PKS00,Building cleaning,170,220.5,Kingdom Service Group,151795,19/07/2018,10261275,CS,582329526,2795197,582329526,PN,37045.31,02/07/2018
Capital Housing Revenue Account,Unplanned Maintenance and Repair,UMR00,Building cleaning,170,486,Kingdom Service Group,151795,19/07/2018,10261275,CS,582329526,2795197,582329526,PN,37045.31,02/07/2018
Capital Housing Revenue Account,WSU Depot,WDP00,Building cleaning,170,436.83,Kingdom Service Group,151795,19/07/2018,10261275,CS,582329526,2795197,582329526,PN,37045.31,02/07/2018
Capital Housing Revenue Account,Town Centre Public Conveniences,PCS00,Toilet Cleaning,173,2500,Kingdom Service Group,151795,19/07/2018,10261275,CS,582329526,2795197,582329526,PN,37045.31,02/07/2018
Capital Housing Revenue Account,Repairs and Maintenance - Void works,UMR09,R&M External Contractors,100,1600,Kingdom Service Group,151795,05/07/2018,10261419,CS,582329526,2795197,582329526,PN,2124,04/07/2018
Capital Housing Revenue Account,Community Advice & Support Team,CAS00,Other Miscellaneous Expenses,444,170,Kingdom Service Group,151795,05/07/2018,10261419,CS,582329526,2795197,582329526,PN,2124,04/07/2018
Capital Housing Revenue Account,Hall of Fame,TRY00,Publicity & Marketing,377,1538,JCDecaux UK Ltd - Rail,151817,19/07/2018,10261756,TC,539090043,1679670,539090043,PI,1845.6,16/07/2018
Capital Housing Revenue Account,Economic Development General,ECD00,Borough Local Plan,452,25000,Growth Hub Business Solutions,151836,26/07/2018,10261936,TC,66928359,10369498,66928359,PN,30000,20/07/2018
Capital Housing Revenue Account,Human Resources Centralised Services,RES31,Recruitment Expenses,12,1950,Growth Hub Business Solutions,151836,26/07/2018,10261944,TC,66928359,10369498,66928359,PN,2340,20/07/2018
Capital Housing Revenue Account,Human Resources Centralised Services,RES31,Recruitment Expenses,12,1155,Growth Hub Business Solutions,151836,26/07/2018,10261945,TC,66928359,10369498,66928359,PN,1386,20/07/2018
Capital Housing Revenue Account,ICT Renewal Programme,CMP00,IT Capital Expenditure,5025,2531.1,PCM Technology Solutions Ltd,151837,05/07/2018,10260984,TC,264198089,103216566,264198089,PI,3038.42,22/06/2018
Capital Housing Revenue Account,Corporate Property Management,CPM00,IT Capital Expenditure,5025,0.92,PCM Technology Solutions Ltd,151837,05/07/2018,10260984,TC,264198089,103216566,264198089,PI,3038.42,22/06/2018
Capital Housing Revenue Account,CAST - Private Sector Leasing,CAS03,Private Sector Leasing Scheme Properties,148,6741,Dreambuilder Financial Ltd,151961,12/07/2018,10261657,NT,,,,PN,6741,11/07/2018
Capital Housing Revenue Account,CAST - Private Sector Leasing,CAS03,Private Sector Leasing Scheme Properties,148,1800,Personal Redacted Data,151978,26/07/2018,10261742,NT,,,,PN,1800,16/07/2018
Capital Housing Revenue Account,Domestic Waste Collection/Recycling,REF00,Training fees,11,1555.5,Specialised Training Services Ltd,152033,26/07/2018,10262004,TC,127516224,7901202,127516224,PI,1807.1,24/07/2018
Capital Housing Revenue Account,Parks,PKS00,R&M External Contractors,100,590,Independent Memorial Inspection,152048,12/07/2018,10261431,TC,829563689,,829563689,PI,708,04/07/2018
Capital Housing Revenue Account,CAST - Private Sector Leasing,CAS03,Private Sector Leasing Scheme Properties,148,2175,Personal Redacted Data,152057,26/07/2018,10261774,NT,,,,PN,2175,16/07/2018
Capital Housing Revenue Account,CAST - Private Sector Leasing,CAS03,Private Sector Leasing Scheme Properties,148,2025,Personal Redacted Data,152060,12/07/2018,10261559,NT,,,,PN,2025,09/07/2018
Capital Housing Revenue Account,AGM Exhibitions/Outreach,AGM02,Other Miscellaneous Expenses,444,2250,Impressions Gallery of Photography Ltd,152066,26/07/2018,10261920,TC,927228710,1161029,927228710,PN,2700,19/07/2018
Capital Housing Revenue Account,About Face Exhibition,AGM08,Other Miscellaneous Expenses,444,1309,Momart Ltd,152067,19/07/2018,10261737,TC,697251302,1073437,697251302,PN,1570.8,16/07/2018
Capital Housing Revenue Account,Cattle Market Site,CMS00,Capital Contract Payments,5000,2480,BWB Consulting,152069,05/07/2018,10261214,TC,6484114245,5265863,6484114245,PN,2976,29/06/2018
Capital Housing Revenue Account,Nightly Paid Self Contained Accommodation,CAS07,Nightly Self Contained Accommodation,149,8433,Centennial Property T/A The Housing Network,152075,05/07/2018,10261351,TC,,,,PN,8433,03/07/2018
Capital Housing Revenue Account,Biart Place - Capital,BIA00,Capital Compensation Payments,5010,5434.6,Personal Redacted Data,152092,05/07/2018,10261165,NT,,,,PN,5434.6,28/06/2018
Capital Housing Revenue Account,Street Cleansing General,STC00,New Equipment,300,521.21,Locker Shop UK Ltd,152115,12/07/2018,10260986,TC,985014314,7145645,985014314,PI,625.46,22/06/2018
Capital Housing Revenue Account,Biart Place - Capital,BIA00,Capital Compensation Payments,5010,5523.36,Personal Redacted Data,152117,05/07/2018,10261307,NT,,,,PN,5523.36,02/07/2018
Capital Housing Revenue Account,Biart Place - Capital,BIA00,Capital Compensation Payments,5010,4934.24,Personal Redacted Data,152121,19/07/2018,10261780,NT,,,,PN,4934.24,17/07/2018
Capital Housing Revenue Account,Biart Place - Capital,BIA00,Capital Compensation Payments,5010,5713.01,Personal Redacted Data,152128,12/07/2018,10261471,NT,,,,PN,5713.01,05/07/2018
Capital Housing Revenue Account,Biart Place - Capital,BIA00,Capital Compensation Payments,5010,5621.8,Personal Redacted Data,152140,19/07/2018,10261779,NT,,,,PN,5621.8,17/07/2018
Capital Housing Revenue Account,Safety and Resilience,EPL00,Training fees,11,1346.25,OSTEOPATHIC  SOLUTIONS LTD,152141,26/07/2018,10261934,TC,139388572,7743200,139388572,PN,1615.5,20/07/2018
Capital Housing Revenue Account,Multi-Storey Flats,MSF00,Other Miscellaneous Expenses,444,1500,Shulmans LLP,152143,19/07/2018,10261744,TC,,OC348166,,PI,1800,16/07/2018
Capital Housing Revenue Account,Biart Place - Capital,BIA00,Capital Compensation Payments,5010,5704.28,Personal Redacted Data,152147,19/07/2018,10261866,NT,,,,PN,5704.28,18/07/2018
Capital Housing Revenue Account,Biart Place - Capital,BIA00,Capital Compensation Payments,5010,4269.16,Personal Redacted Data,152148,19/07/2018,10261679,NT,,,,PN,4269.16,12/07/2018
Capital Housing Revenue Account,Biart Place - Capital,BIA00,Capital Compensation Payments,5010,6100,Personal Redacted Data,152150,12/07/2018,10261641,NT,,,,PN,6100,10/07/2018
Capital Housing Revenue Account,Biart Place - Capital,BIA00,Capital Compensation Payments,5010,5630.64,Personal Redacted Data,152151,26/07/2018,10262097,NT,,,,PN,5630.64,25/07/2018
Capital Housing Revenue Account,Biart Place - Capital,BIA00,Capital Compensation Payments,5010,5457.37,Personal Redacted Data,152154,19/07/2018,10261844,NT,,,,PN,5457.37,17/07/2018
Capital Housing Revenue Account,Biart Place - Capital,BIA00,Capital Compensation Payments,5010,5632.04,Personal Redacted Data,152165,19/07/2018,10261889,NT,,,,PN,5632.04,18/07/2018
Capital Housing Revenue Account,Biart Place - Capital,BIA00,Capital Compensation Payments,5010,4529.7,Personal Redacted Data,152166,26/07/2018,10262019,NT,,,,PN,4529.7,24/07/2018
Capital Housing Revenue Account,Biart Place - Capital,BIA00,Capital Compensation Payments,5010,5763.96,Personal Redacted Data,152167,19/07/2018,10261888,NT,,,,PN,5763.96,18/07/2018
Capital Housing Revenue Account,Highways,HIG20,Contract Hire,220,1471.25,Red Band UK Ltd,152170,19/07/2018,10261842,TC,371768522,1572510,371768522,PI,1765.5,17/07/2018
Capital Housing Revenue Account,Art Gallery and Museum,AGM00,Health and Safety Costs,449,1100,KAD Environmental Consultancy Ltd T/A Kadec Asbestos management,152171,19/07/2018,10261747,TC,875766267,5529523,875766267,PI,1320,16/07/2018
Capital Housing Revenue Account,Biart Place - Capital,BIA00,Capital Compensation Payments,5010,1500,Personal Redacted Data,152173,05/07/2018,10261306,NT,,,,PN,1500,02/07/2018
Capital Housing Revenue Account,The Benn Hall,BHL00,Events Tickets - Zero Rated,1405,2411.1,Personal Redacted Data,152176,05/07/2018,10261283,NT,,,,PN,2411.1,02/07/2018
Capital Housing Revenue Account,Biart Place - Capital,BIA00,Capital Compensation Payments,5010,1750,Personal Redacted Data,152177,05/07/2018,10261305,NT,,,,PN,1750,02/07/2018
Capital Housing Revenue Account,Biart Place - Capital,BIA00,Capital Compensation Payments,5010,5652.85,Personal Redacted Data,152177,19/07/2018,10261792,NT,,,,PN,5652.85,17/07/2018
Capital Housing Revenue Account,Biart Place - Capital,BIA00,Capital Compensation Payments,5010,1750,Personal Redacted Data,152180,05/07/2018,10261417,NT,,,,PN,1750,04/07/2018
Capital Housing Revenue Account,Biart Place - Capital,BIA00,Capital Compensation Payments,5010,1500,Personal Redacted Data,152181,05/07/2018,10261383,NT,,,,PN,1500,04/07/2018
Capital Housing Revenue Account,Biart Place - Capital,BIA00,Capital Compensation Payments,5010,1750,Personal Redacted Data,152182,05/07/2018,10261418,NT,,,,PN,1750,04/07/2018
Capital Housing Revenue Account,Biart Place - Capital,BIA00,Capital Compensation Payments,5010,5551.04,Personal Redacted Data,152182,19/07/2018,10261865,NT,,,,PN,5551.04,18/07/2018
Capital Housing Revenue Account,Biart Place - Capital,BIA00,Capital Compensation Payments,5010,1750,Personal Redacted Data,152191,12/07/2018,10261653,NT,,,,PN,1750,11/07/2018
Capital Housing Revenue Account,Supervision and Management General,MAN00,External Contractor & Operator,742,825,David Cosby Ltd,152192,19/07/2018,10261902,TC,864653103,5748124,864653103,PN,990,18/07/2018
Capital Housing Revenue Account,Frederick Press Way AP,AGP06,Furniture,302,1179,Shackletons Ltd,152195,19/07/2018,10261758,TC,772346028,,772346028,PN,1414.8,16/07/2018
Capital Housing Revenue Account,Frederick Press Way AP,AGP06,Furniture,302,656.64,Shackletons Ltd,152195,19/07/2018,10261759,TC,772346028,,772346028,PN,787.97,16/07/2018
Capital Housing Revenue Account,Frederick Press Way AP,AGP06,Furniture,302,5184,Shackletons Ltd,152195,19/07/2018,10261760,TC,772346028,,772346028,PN,6220.8,16/07/2018
Capital Housing Revenue Account,Grants and Subscriptions,LGS00,Grants To Voluntary Organisations,720,1000,Rugby Filmmakers Collective,152202,26/07/2018,10261923,NT,,,,PN,1000,19/07/2018
Capital Housing Revenue Account,Biart Place - Capital,BIA00,Capital Compensation Payments,5010,1750,Personal Redacted Data,152203,26/07/2018,10261961,NT,,,,PN,1750,23/07/2018
Capital Housing Revenue Account,Biart Place - Capital,BIA00,Capital Compensation Payments,5010,1750,Personal Redacted Data,152204,26/07/2018,10261960,NT,,,,PN,1750,23/07/2018
Capital Housing Revenue Account,Biart Place - Capital,BIA00,Capital Compensation Payments,5010,1750,Personal Redacted Data,152209,26/07/2018,10262049,NT,,,,PN,1750,24/07/2018
Capital Housing Revenue Account,Biart Place - Capital,BIA00,Capital Compensation Payments,5010,3900,Personal Redacted Data,152213,26/07/2018,10262095,NT,,,,PN,3900,25/07/2018
Capital Housing Revenue Account,Trade Waste Collection,WWC01,Other Miscellaneous Expenses,444,1438.79,Accident Express Rugby Ltd,152215,26/07/2018,10262107,TC,104050087,6551465,104050087,PN,1726.55,25/07/2018
Communities and Homes,CAST - Bed & Breakfast,CAS01,Bed and Breakfast Temporary Accommodation,146,525,The Allesley Hotel,,11/07/2018,46651,,,,,,,
Communities and Homes,CAST - Bed & Breakfast,CAS01,Bed and Breakfast Temporary Accommodation,146,540,The Allesley Hotel,,11/07/2018,46651,,,,,,,
Communities and Homes,CAST - Bed & Breakfast,CAS01,Bed and Breakfast Temporary Accommodation,146,556.25,The Allesley Hotel,,11/07/2018,46651,,,,,,,
Communities and Homes,CAST - Bed & Breakfast,CAS01,Bed and Breakfast Temporary Accommodation,146,641.67,The Allesley Hotel,,11/07/2018,46651,,,,,,,
Communities and Homes,CAST - Bed & Breakfast,CAS01,Bed and Breakfast Temporary Accommodation,146,770,The Allesley Hotel,,11/07/2018,46651,,,,,,,
Communities and Homes,CAST - Bed & Breakfast,CAS01,Bed and Breakfast Temporary Accommodation,146,825,The Allesley Hotel,,11/07/2018,46651,,,,,,,
Communities and Homes,CAST - Bed & Breakfast,CAS01,Bed and Breakfast Temporary Accommodation,146,525,The Allesley Hotel,,11/07/2018,46652,,,,,,,
Communities and Homes,CAST - Bed & Breakfast,CAS01,Bed and Breakfast Temporary Accommodation,146,526.66,The Carlton Hotel,,11/07/2018,46652,,,,,,,
Communities and Homes,CAST - Bed & Breakfast,CAS01,Bed and Breakfast Temporary Accommodation,146,675,The Allesley Hotel,,11/07/2018,46652,,,,,,,
Communities and Homes,CAST - Bed & Breakfast,CAS01,Bed and Breakfast Temporary Accommodation,146,717.5,The Allesley Hotel,,11/07/2018,46652,,,,,,,
Communities and Homes,CAST - Bed & Breakfast,CAS01,Bed and Breakfast Temporary Accommodation,146,990,The Allesley Hotel,,11/07/2018,46652,,,,,,,
Communities and Homes,ITC & Support Services,CIS10,Software Maintenance,374,804.53,Google,,26/07/2018,46770,,,,,,,
Communities and Homes,CAST - Bed & Breakfast,CAS01,Bed and Breakfast Temporary Accommodation,146,975,The Allesley Hotel,,26/07/2018,46770,,,,,,,
Environment and Public Realm,Parks,PKS00,New Equipment,300,1293.83,Therebutnotthere Products,,26/07/2018,46770,,,,,,,
Housing Revenue Account,Unplanned Maintenance and Repair,UMR00,Tools,304,519.95,Screwfix Ltd,,16/07/2018,46771,,,,,,,
Communities and Homes,ITC & Support Services,CIS10,Software Maintenance,374,825.11,Google,,16/07/2018,46771,,,,,,,
Communities and Homes,CAST - Bed & Breakfast,CAS01,Bed and Breakfast Temporary Accommodation,146,2200,The Allesley Hotel,,16/07/2018,46771,,,,,,,
Communities and Homes,CAST - Bed & Breakfast,CAS01,Bed and Breakfast Temporary Accommodation,146,460.83,The Carlton Hotel,,27/07/2018,46784,,,,,,,
Communities and Homes,CAST - Bed & Breakfast,CAS01,Bed and Breakfast Temporary Accommodation,146,660,The Allesley Hotel,,27/07/2018,46784,,,,,,,
Communities and Homes,CAST - Bed & Breakfast,CAS01,Bed and Breakfast Temporary Accommodation,146,717.5,The Allesley Hotel,,27/07/2018,46784,,,,,,,
Communities and Homes,CAST - Bed & Breakfast,CAS01,Bed and Breakfast Temporary Accommodation,146,460.83,The Carlton Hotel,,16/07/2018,46785,,,,,,,
Communities and Homes,CAST - Bed & Breakfast,CAS01,Bed and Breakfast Temporary Accommodation,146,460.83,The Carlton Hotel,,16/07/2018,46785,,,,,,,
Communities and Homes,CAST - Bed & Breakfast,CAS01,Bed and Breakfast Temporary Accommodation,146,460.83,The Carlton Hotel,,16/07/2018,46785,,,,,,,
Communities and Homes,CAST - Bed & Breakfast,CAS01,Bed and Breakfast Temporary Accommodation,146,460.83,The Carlton Hotel,,16/07/2018,46785,,,,,,,
Communities and Homes,CAST - Bed & Breakfast,CAS01,Bed and Breakfast Temporary Accommodation,146,460.83,Travelodge,,16/07/2018,46785,,,,,,,
Environment and Public Realm,Domestic Waste Collection/Recycling,REF00,Vehicle Running Costs,201,652.5,DVLA,,16/07/2018,46785,,,,,,,
Environment and Public Realm,Domestic Waste Collection/Recycling,REF00,Vehicle Running Costs,201,652.5,DVLA,,16/07/2018,46785,,,,,,,
Environment and Public Realm,Trade Waste Collection,WWC01,Vehicle Running Costs,201,652.5,DVLA,,16/07/2018,46785,,,,,,,
Communities and Homes,CAST - Bed & Breakfast,CAS01,Bed and Breakfast Temporary Accommodation,146,1115,The Allesley Hotel,,16/07/2018,46785,,,,,,,
Communities and Homes,Private Sector Leasing,CAS06,Homelessness Prevention,148,1300,Edward Knight Lettings,,02/07/2018,46587,,,,,,,
Communities and Homes,CAST - Bed & Breakfast,CAS01,Bed and Breakfast Temporary Accommodation,146,593.5,Premier Inn ,,03/07/2018,46590,,,,,,,
Communities and Homes,Private Sector Leasing,CAS06,Homelessness Prevention,148,3100,Personal Redacted Data,,04/07/2018,46604,,,,,,,
Communities and Homes,Private Sector Leasing,CAS06,Homelessness Prevention,148,861,Personal Redacted Data,,05/07/2018,46611,,,,,,,
Communities and Homes,Private Sector Leasing,CAS06,Homelessness Prevention,148,830,Personal Redacted Data,,05/07/2018,46612,,,,,,,
Communities and Homes,Private Sector Leasing,CAS06,Homelessness Prevention,148,6060,Thornton Robson Client Acc,,06/07/2018,46623,,,,,,,
Communities and Homes,Private Sector Leasing,CAS06,Homelessness Prevention,148,5266.8,Personal Redacted Data,,09/07/2018,46643,,,,,,,
Communities and Homes,Private Sector Leasing,CAS06,Homelessness Prevention,148,3000,Personal Redacted Data,,13/07/2018,46675,,,,,,,
Communities and Homes,CAST - Bed & Breakfast,CAS01,Bed and Breakfast Temporary Accommodation,146,8923.35,Travelodge,,16/07/2018,46689,,,,,,,
Communities and Homes,CAST - Bed & Breakfast,CAS01,Bed and Breakfast Temporary Accommodation,146,3672.2,ACCOR,,17/07/2018,46811,,,,,,,
Outside portfolio expenditure,User Balance Sheet Cost Centre,BSU,Collection Fund,9476,1149042,DCLG,,18/07/2018,46703,,,,,,,
Outside portfolio expenditure,User Balance Sheet Cost Centre,BSU,Collection Fund,9476,434396,WCC County Fund,,19/07/2018,46718,,,,,,,
Outside portfolio expenditure,User Balance Sheet Cost Centre,BSU,Collection Fund,9476,2260595,DCLG,,19/07/2018,46717,,,,,,,
Corporate Resources,General Financial Services,GFS00,Payment Card Costs,445,3187.02,Capita,,26/07/2018,46780,,,,,,,
Communities and Homes,ITC & Support Services,CIS21,Software Maintenance,374,679.78,Bottomline Technologies,,20/07/2018,46724,,,,,,,
Communities and Homes,Private Sector Leasing,CAS06,Homelessness Prevention,148,4600,Personal Redacted Data,,23/07/2018,46742,,,,,,,
Communities and Homes,Private Sector Leasing,CAS06,Homelessness Prevention,148,1250,LG James Ltd,,24/07/2018,46754,,,,,,,
Communities and Homes,Private Sector Leasing,CAS06,Homelessness Prevention,148,1750,Rose & Sargent,,26/07/2018,46781,,,,,,,
Outside portfolio expenditure,User Balance Sheet Cost Centre,BSU,Merchandise,1200,1716.4,World Rugby,,31/07/2018,46809,,,,,,,
Communities and Homes,CAST - Bed & Breakfast,CAS01,Bed and Breakfast Temporary Accommodation,146,593.5,Premier Inn ,,31/07/2018,46807,,,,,,,
